{"text_format":"1","workbook":"xlsx","n_sheets":6,"sheets":["ご利用申込書","参加者名簿","食事注文書","物品使用届","プログラム（スケジュール）","宿泊部屋配当表"],"not_rendered":{"charts":0,"images":0,"macros":1,"external_links":3,"defined_names":23,"comments":1,"pivot_tables":0},"unopened":[],"bounds":{"document_bytes":16777216,"sheet_cells":100000,"rows_first":2000,"rows_last":500,"rows_between":2000,"halvings":0,"cell_chars":16384,"cell_head_chars":4096},"cells_cut":0,"cells_raw":0,"read":"whole","date_system":"1900"}

{"sheet":"ご利用申込書","index":0,"n_rows":63,"n_cols":29,"rows_kept":63,"cut":false,"hidden":false,"merged":[[62,0,62,16],[36,2,36,16],[37,2,37,8],[37,9,37,11],[37,12,37,16],[38,0,38,1],[38,3,38,4],[38,6,38,7],[6,9,6,11],[6,12,6,16],[6,0,6,1],[9,5,9,7],[9,8,9,10],[9,11,9,13],[9,14,9,16],[16,0,16,1],[17,0,17,1],[8,15,8,16],[10,0,10,1],[10,2,10,4],[10,5,10,7],[10,8,10,10],[10,11,10,13],[10,14,10,16],[1,0,1,1],[2,0,2,1],[2,2,2,8],[2,9,2,11],[2,12,2,16],[1,2,1,16],[3,0,4,1],[3,3,3,5],[3,6,3,16],[4,2,4,16],[9,0,9,1],[9,2,9,4],[7,0,7,1],[8,0,8,1],[8,3,8,4],[8,6,8,7],[8,9,8,10],[8,12,8,13],[7,2,7,8],[7,9,7,16],[11,74,11,76],[13,0,13,1],[14,0,14,1],[15,0,15,1],[29,0,30,0],[31,0,33,0],[18,0,18,1],[19,0,19,1],[20,0,20,1],[21,0,21,1],[11,0,12,1],[11,49,11,51],[39,0,39,1],[36,0,36,1],[42,2,42,4],[42,5,42,7],[34,0,34,1],[40,0,40,1],[41,0,41,1],[22,0,22,1],[23,0,24,0],[25,0,25,1],[26,0,26,1],[27,0,27,1],[28,0,28,1],[41,2,41,4],[41,5,41,7],[40,2,40,4],[40,5,40,7],[37,0,37,1],[42,0,42,1],[41,8,41,10],[41,11,41,13],[41,14,41,16],[38,9,38,10],[38,12,38,13],[38,15,38,16],[40,8,40,10],[40,11,40,13],[40,14,40,16],[48,0,48,1],[42,8,42,10],[42,11,42,13],[42,14,42,16],[43,2,43,4],[43,5,43,7],[43,8,43,10],[43,11,43,13],[43,14,43,16],[43,0,43,1],[6,2,6,8],[5,0,5,1],[5,2,5,3],[5,4,5,8],[5,9,5,11],[5,12,5,16],[61,8,61,10],[61,11,61,13],[61,14,61,16],[52,0,52,1],[57,0,57,1],[58,0,58,1],[60,0,60,1],[61,2,61,4],[61,5,61,7],[53,0,53,1],[54,0,56,0],[59,0,59,1],[49,0,49,1],[50,0,50,1],[51,0,51,1],[44,0,45,1],[46,0,46,1],[47,0,47,1]]}
["◆愛知県美浜少年自然の家　ご利用申込書(許可申請書)/ご利用計画書（表）　（必要事項をご入力ください。）"]
["団体名"]
["代表者名",null,null,null,null,null,null,null,null,"電話番号"]
["住所",null,"〒"]
[]
["連絡先等",null,"FAX番号",null,null,null,null,null,null,"e-mail"]
["ご利用担当者名",null,null,null,null,null,null,null,null,"担当者電話"]
["ご利用目的"]
["ご利用日時",null,"宿泊",null,null,null,{"$f":"IF(F9=\"\",\"\",D9+1)","v":""},null,null,{"$f":"IF(I9=\"\",\"\",G9+1)","v":""},null,null,{"$f":"IF(L9=\"\",\"\",J9+1)","v":""},null,null,{"$f":"IF(O9=\"\",\"\",M9+1)","v":""}]
["入所時刻",null,null,null,null,"―",null,null,"―",null,null,"―",null,null,"―"]
["退所時刻",null,null,null,null,null,null,null,null,null,null,null,null,null,null,null,null,null,null,null,null,null,null,null,null,"●","アクティビティ・プログラム","2H  9-11","研修会"]
["時間区分",null,"午前Ａ","午後Ｂ","夜間Ｃ","午前Ａ","午後Ｂ","夜間Ｃ","午前Ａ","午後Ｂ","夜間Ｃ","午前Ａ","午後Ｂ","夜間Ｃ","午前Ａ","午後Ｂ","夜間Ｃ",null,null,null,null,null,null,null,null,"雨","■野外活動","2H 11-13","講習会"]
[null,null,"9-12","13-17","18-21","9-12","13-17","18-21","9-12","13-17","18-21","9-12","13-17","18-21","9-12","13-17","18-21",null,null,null,null,null,null,null,null,null,"▼歩のプログラム","2H 13-15","会議"]
["第１研修室（５０人）",null,null,null,null,null,null,null,null,null,null,null,null,null,null,null,null,null,null,null,null,null,null,null,null,null,"・ウォークラリー","2H 15-17","学習会"]
["第２研修室（５０人）",null,null,null,null,null,null,null,null,null,null,null,null,null,null,null,null,null,null,null,null,null,null,null,null,"A","・ハイキング","4H  9-13","親睦会"]
["第３研修室（５０人）",null,null,null,null,null,null,null,null,null,null,null,null,null,null,null,null,null,null,null,null,null,null,null,null,"B","・ナイトハイク","4H 11-15","クラブ・部・サークル活動"]
["第４研修室（５０人）",null,null,null,null,null,null,null,null,null,null,null,null,null,null,null,null,null,null,null,null,null,null,null,null,"雨","・オリエンテーリング","4H 13-17","野外活動"]
["第５研修室（５０人）",null,null,null,null,null,null,null,null,null,null,null,null,null,null,null,null,null,null,null,null,null,null,null,null,null,"▼海のプログラム","8H  9-17","レクリエーション"]
["第６研修室（５０人）",null,null,null,null,null,null,null,null,null,null,null,null,null,null,null,null,null,null,null,null,null,null,null,null,"朝","・砂の造形",null,"オリエンテーション"]
["第７研修室（５０人）",null,null,null,null,null,null,null,null,null,null,null,null,null,null,null,null,null,null,null,null,null,null,null,null,"昼","・海水浴",null,"その他"]
["第８研修室（５０人）",null,null,null,null,null,null,null,null,null,null,null,null,null,null,null,null,null,null,null,null,null,null,null,null,"夕","・地引き網"]
["第９研修室（５０人）",null,null,null,null,null,null,null,null,null,null,null,null,null,null,null,null,null,null,null,null,null,null,null,null,null,"・魚つかみ"]
["第１０研修室（５０人）",null,null,null,null,null,null,null,null,null,null,null,null,null,null,null,null,null,null,null,null,null,null,null,null,null,"・釣り"]
["体育館\n36m×30m","全面利用",null,null,null,null,null,null,null,null,null,null,null,null,null,null,null,null,null,null,null,null,null,null,null,null,"▼食のプログラム"]
[null,"半面利用",null,null,null,null,null,null,null,null,null,null,null,null,null,null,null,null,null,null,null,null,null,null,null,null,"・野外炊飯"]
["講堂（５００人）",null,null,null,null,null,null,null,null,null,null,null,null,null,null,null,null,null,null,null,null,null,null,null,null,null,"▼楽のプログラム"]
["観測ホール（６F）",null,null,null,null,null,null,null,null,null,null,null,null,null,null,null,null,null,null,null,null,null,null,null,null,null,"・ファイヤーのつどい"]
["つどいの広場（掲揚塔）",null,null,null,null,null,null,null,null,null,null,null,null,null,null,null,null,null,null,null,null,null,null,null,null,null,"・屋外スポーツ・レクリエーション"]
["チャレンジ広場",null,null,null,null,null,null,null,null,null,null,null,null,null,null,null,null,null,null,null,null,null,null,null,null,null,"▼観のプログラム"]
["ふれあい","広場・営火場",null,null,null,null,null,null,null,null,null,null,null,null,null,null,null,null,null,null,null,null,null,null,null,null,"・星の観察"]
[null,"炊飯場",null,null,null,null,null,null,null,null,null,null,null,null,null,null,null,null,null,null,null,null,null,null,null,null,"・バードウォッチング"]
["ロマン","広場・営火場",null,null,null,null,null,null,null,null,null,null,null,null,null,null,null,null,null,null,null,null,null,null,null,null,"・磯の生物観察"]
[null,"炊飯場（A)",null,null,null,null,null,null,null,null,null,null,null,null,null,null,null,null,null,null,null,null,null,null,null,null,"・史跡・文化財等紹介"]
[null,"炊飯場（B)",null,null,null,null,null,null,null,null,null,null,null,null,null,null,null,null,null,null,null,null,null,null,null,null,"■屋内活動"]
["野外ステージ・芝生広場",null,null,null,null,null,null,null,null,null,null,null,null,null,null,null,null,null,null,null,null,null,null,null,null,null,"▼創のプログラム"]
["◆愛知県美浜少年自然の家　ご利用申込書/ご利用計画書（裏）　　　（必要事項をご記入・入力ください。）",null,null,null,null,null,null,null,null,null,null,null,null,null,null,null,null,null,null,null,null,null,null,null,null,null,"・湯呑みの一刀彫り"]
["団体名",null,{"$f":"IF(C2=\"\",\"\",C2)","v":""},null,null,null,null,null,null,null,null,null,null,null,null,null,null,null,null,null,null,null,null,null,null,null,"・焼き板壁掛けクラフト"]
["ご利用担当者名",null,{"$f":"IF(C7=\"\",\"\",C7)","v":""},null,null,null,null,null,null,"担当者電話",null,null,{"$f":"IF(M7=\"\",\"\",M7)","v":""},null,null,null,null,null,null,null,null,null,null,null,null,null,"・竹とんぼ"]
["ご利用日時",null,"初日",{"$f":"IF(D9=\"\",\"\",D9)","v":""},null,"２日目",{"$f":"G9","v":""},null,"３日目",{"$f":"J9","v":""},null,"４日目",{"$f":"M9","v":""},null,"５日目",{"$f":"P9","v":""},null,null,null,null,null,null,null,null,null,null,"・ビーチコーミング"]
["時間区分",null,"２H","４H","８H","２H","４H","８H","２H","４H","８H","２H","４H","８H","２H","４H","８H",null,null,null,null,null,null,null,null,null,"・砂時計作り"]
["テニスコート（Ａ）",null,null,null,null,null,null,null,null,null,null,null,null,null,null,null,null,null,null,null,null,null,null,null,null,null,"▼楽のプログラム"]
["テニスコート（B）",null,null,null,null,null,null,null,null,null,null,null,null,null,null,null,null,null,null,null,null,null,null,null,null,null,"・キャンドルのつどい"]
["テニスコート（C）",null,null,null,null,null,null,null,null,null,null,null,null,null,null,null,null,null,null,null,null,null,null,null,null,null,"・屋内スポーツ・レクリエーション"]
["テニスコート（D）",null,null,null,null,null,null,null,null,null,null,null,null,null,null,null,null,null,null,null,null,null,null,null,null,null,"▼視のプログラム"]
["アクティビティ・プログラム",null,"午前Ａ","午後Ｂ","夜間Ｃ","午前Ａ","午後Ｂ","夜間Ｃ","午前Ａ","午後Ｂ","夜間Ｃ","午前Ａ","午後Ｂ","夜間Ｃ","午前Ａ","午後Ｂ","夜間Ｃ",null,null,null,null,null,null,null,null,null,"・視聴覚機器による活動"]
[null,null,"9-12","13-17","18-21","9-12","13-17","18-21","9-12","13-17","18-21","9-12","13-17","18-21","9-12","13-17","18-21"]
[]
[]
[]
[]
[]
[]
["ご利用者数",null,"計","男","女","計","男","女","計","男","女","計","男","女","計","男","女"]
["ご利用総人数",null,{"$f":"IF(SUM(D54:E54)<1,\"\",SUM(D54:E54))","v":""},null,null,{"$f":"IF(SUM(G54:H54)<1,\"\",SUM(G54:H54))","v":""},null,null,{"$f":"IF(SUM(J54:K54)<1,\"\",SUM(J54:K54))","v":""},null,null,{"$f":"IF(SUM(M54:N54)<1,\"\",SUM(M54:N54))","v":""},null,null,{"$f":"IF(SUM(P54:Q54)<1,\"\",SUM(P54:Q54))","v":""}]
["ご宿泊","４歳以上中学生以下",{"$f":"IF(SUM(D55:E55)<1,\"\",SUM(D55:E55))","v":""},null,null,{"$f":"IF(SUM(G55:H55)<1,\"\",SUM(G55:H55))","v":""},null,null,{"$f":"IF(SUM(J55:K55)<1,\"\",SUM(J55:K55))","v":""},null,null,{"$f":"IF(SUM(M55:N55)<1,\"\",SUM(M55:N55))","v":""},null,null,{"$f":"IF(SUM(P55:Q55)<1,\"\",SUM(P55:Q55))","v":""}]
[null,"高校生以上",{"$f":"IF(SUM(D56:E56)<1,\"\",SUM(D56:E56))","v":""},null,null,{"$f":"IF(SUM(G56:H56)<1,\"\",SUM(G56:H56))","v":""},null,null,{"$f":"IF(SUM(J56:K56)<1,\"\",SUM(J56:K56))","v":""},null,null,{"$f":"IF(SUM(M56:N56)<1,\"\",SUM(M56:N56))","v":""},null,null,{"$f":"IF(SUM(P56:Q56)<1,\"\",SUM(P56:Q56))","v":""}]
[null,"宿泊人数合計",{"$f":"IF(SUM(D57:E57)<1,\"\",SUM(D57:E57))","v":""},{"$f":"IF(SUM(D55:D56)>0,SUM(D55:D56),\"\")","v":""},{"$f":"IF(SUM(E55:E56)>0,SUM(E55:E56),\"\")","v":""},{"$f":"IF(SUM(G57:H57)<1,\"\",SUM(G57:H57))","v":""},{"$f":"IF(SUM(G55:G56)>0,SUM(G55:G56),\"\")","v":""},{"$f":"IF(SUM(H55:H56)>0,SUM(H55:H56),\"\")","v":""},{"$f":"IF(SUM(J57:K57)<1,\"\",SUM(J57:K57))","v":""},{"$f":"IF(SUM(J55:J56)>0,SUM(J55:J56),\"\")","v":""},{"$f":"IF(SUM(K55:K56)>0,SUM(K55:K56),\"\")","v":""},{"$f":"IF(SUM(M57:N57)<1,\"\",SUM(M57:N57))","v":""},{"$f":"IF(SUM(M55:M56)>0,SUM(M55:M56),\"\")","v":""},{"$f":"IF(SUM(N55:N56)>0,SUM(N55:N56),\"\")","v":""},{"$f":"IF(SUM(P57:Q57)<1,\"\",SUM(P57:Q57))","v":""},{"$f":"IF(SUM(P55:P56)>0,SUM(P55:P56),\"\")","v":""},{"$f":"IF(SUM(Q55:Q56)>0,SUM(Q55:Q56),\"\")","v":""}]
["お食事数",null,"朝食","昼食","夕食","朝食","昼食","夕食","朝食","昼食","夕食","朝食","昼食","夕食","朝食","昼食","夕食"]
["食堂で食べる分"]
["弁当を注文する分"]
["野外食材を注文する分"]
["備\n考","機材等の借用依頼、施設利用における要望事項をご記入ください。"]
["【ご記入・入力にあたっての注意事項】\n団体名などの必要事項をご記入いただき、仮予約済みの施設のご利用時間帯区分の欄に○印をお付けください。/アクティビティプ・ログラムについては、ご利用されるプログラムの名称をご記入・選択したうえで、時間帯区分に印をお付けください。/テニスコートについては、2時間単位で該当する区分に印をお付けください。/ご利用者数欄の利用総人員数には日帰り＋宿泊の利用人数をご記入・入力ください。/宿泊人数については、年齢区分ごとにご記入・入力ください。/お食事数の欄には、食堂でお食べになる分と野外炊飯で食材を注文する分とに分けて、必要人数をご記入・入力ください。/4泊5日を超えてご利用される場合には、本ファイルをコピーのうえ、6日目以降を「団体名２」として、別ファイルを作成してください。"]

{"sheet":"参加者名簿","index":1,"n_rows":55,"n_cols":25,"rows_kept":55,"cut":false,"hidden":false,"merged":[[3,9,4,9],[3,10,3,12],[0,0,0,12],[3,0,4,0],[3,1,4,1],[3,2,4,2],[3,3,4,3],[1,8,1,9],[3,4,3,8],[1,4,1,5],[1,11,1,12],[1,6,1,7],[1,1,1,3]]}
["◆愛知県美浜少年自然の家　宿泊者名簿　　（必要事項をご入力ください。）"]
["団体名",{"$f":"IF(ご利用申込書!C2=\"\",\"\",ご利用申込書!C2)","v":""},null,null,"期間",null,"入所日",null,{"$f":"IF(ご利用申込書!D9=\"\",\"\",ご利用申込書!D9)","v":""},null,"退所日",{"$f":"IF(ご利用申込書!P9<>\"\",ご利用申込書!P9,IF(ご利用申込書!M9<>\"\",ご利用申込書!M9,IF(ご利用申込書!J9<>\"\",ご利用申込書!J9,IF(ご利用申込書!G9<>\"\",ご利用申込書!G9,\"\"))))","v":""}]
[]
["番号","氏　　　　名","区分","性別"," 宿泊日　　(その日に宿泊しない方は「×」を)",null,null,null,null,"現住所","備     考"]
[null,null,null,null,{"$f":"IF(I2=\"\",\"\",I2)","v":""},{"$f":"IF(E5=\"\",\"\",IF((E5+1)<=$L2,E5+1,\"\"))","v":""},{"$f":"IF(F5=\"\",\"\",IF((F5+1)<=$L2,F5+1,\"\"))","v":""},{"$f":"IF(G5=\"\",\"\",IF((G5+1)<=$L2,G5+1,\"\"))","v":""},{"$f":"IF(H5=\"\",\"\",IF((H5+1)<=$L2,H5+1,\"\"))","v":""},null,"職業","国籍","旅券番号",null,null,null,null,null,null,null,"1泊目","2泊目","3泊目","4泊目","5泊目"]
[1,null,null,null,null,null,null,null,null,null,null,null,null,null,null,null,null,null,null,"   *** 小学生 男計",{"$f":"IF($E$5=\"\",\"\",SUMPRODUCT(($C6:$C455=\"小学生\")*($D6:$D455=\"男\")*($E6:$E455=\"\")))","v":""},{"$f":"IF($F$5=\"\",\"\",SUMPRODUCT(($C6:$C55=\"小学生\")*($D6:$D55=\"男\")*($F6:$F55=\"\")))","v":""},{"$f":"IF($G$5=\"\",\"\",SUMPRODUCT(($C6:$C55=\"小学生\")*($D6:$D55=\"男\")*($G6:$G55=\"\")))","v":""},{"$f":"IF($H$5=\"\",\"\",SUMPRODUCT(($C6:$C55=\"小学生\")*($D6:$D55=\"男\")*($H6:$H55=\"\")))","v":""},{"$f":"IF($I$5=\"\",\"\",SUMPRODUCT(($C6:$C55=\"小学生\")*($D6:$D55=\"男\")*($I6:$I55=\"\")))","v":""}]
[2,null,null,null,null,null,null,null,null,null,null,null,null,null,null,null,null,null,null,"   *** 小学生 女計",{"$f":"IF($E$5=\"\",\"\",SUMPRODUCT(($C6:$C455=\"小学生\")*($D6:$D455=\"女\")*($E6:$E455=\"\")))","v":""},{"$f":"IF($F$5=\"\",\"\",SUMPRODUCT(($C6:$C55=\"小学生\")*($D6:$D55=\"女\")*($F6:$F55=\"\")))","v":""},{"$f":"IF($G$5=\"\",\"\",SUMPRODUCT(($C6:$C55=\"小学生\")*($D6:$D55=\"女\")*($G6:$G55=\"\")))","v":""},{"$f":"IF($H$5=\"\",\"\",SUMPRODUCT(($C6:$C55=\"小学生\")*($D6:$D55=\"女\")*($H6:$H55=\"\")))","v":""},{"$f":"IF($I$5=\"\",\"\",SUMPRODUCT(($C6:$C55=\"小学生\")*($D6:$D55=\"女\")*($I6:$I55=\"\")))","v":""}]
[3,null,null,null,null,null,null,null,null,null,null,null,null,null,null,null,null,null,null,"   *** 中学生 男計",{"$f":"IF($E$5=\"\",\"\",SUMPRODUCT(($C6:$C55=\"中学生\")*($D6:$D55=\"男\")*($E6:$E55=\"\")))","v":""},{"$f":"IF($F$5=\"\",\"\",SUMPRODUCT(($C6:$C55=\"中学生\")*($D6:$D55=\"男\")*($F6:$F55=\"\")))","v":""},{"$f":"IF($G$5=\"\",\"\",SUMPRODUCT(($C6:$C55=\"中学生\")*($D6:$D55=\"男\")*($G6:$G55=\"\")))","v":""},{"$f":"IF($H$5=\"\",\"\",SUMPRODUCT(($C6:$C55=\"中学生\")*($D6:$D55=\"男\")*($H6:$H55=\"\")))","v":""},{"$f":"IF($I$5=\"\",\"\",SUMPRODUCT(($C6:$C55=\"中学生\")*($D6:$D55=\"男\")*($I6:$I55=\"\")))","v":""}]
[4,null,null,null,null,null,null,null,null,null,null,null,null,null,null,null,null,null,null,"   *** 中学生 女計",{"$f":"IF($E$5=\"\",\"\",SUMPRODUCT(($C6:$C55=\"中学生\")*($D6:$D55=\"女\")*($E6:$E55=\"\")))","v":""},{"$f":"IF($F$5=\"\",\"\",SUMPRODUCT(($C6:$C55=\"中学生\")*($D6:$D55=\"女\")*($F6:$F55=\"\")))","v":""},{"$f":"IF($G$5=\"\",\"\",SUMPRODUCT(($C6:$C55=\"中学生\")*($D6:$D55=\"女\")*($G6:$G55=\"\")))","v":""},{"$f":"IF($H$5=\"\",\"\",SUMPRODUCT(($C6:$C55=\"中学生\")*($D6:$D55=\"女\")*($H6:$H55=\"\")))","v":""},{"$f":"IF($I$5=\"\",\"\",SUMPRODUCT(($C6:$C55=\"中学生\")*($D6:$D55=\"女\")*($I6:$I55=\"\")))","v":""}]
[5,null,null,null,null,null,null,null,null,null,null,null,null,null,null,null,null,null,null,"   *** 高校生 男計",{"$f":"IF($E$5=\"\",\"\",SUMPRODUCT(($C6:$C55=\"高校生\")*($D6:$D55=\"男\")*($E6:$E55=\"\")))","v":""},{"$f":"IF($F$5=\"\",\"\",SUMPRODUCT(($C6:$C55=\"高校生\")*($D6:$D55=\"男\")*($F6:$F55=\"\")))","v":""},{"$f":"IF($G$5=\"\",\"\",SUMPRODUCT(($C6:$C55=\"高校生\")*($D6:$D55=\"男\")*($G6:$G55=\"\")))","v":""},{"$f":"IF($H$5=\"\",\"\",SUMPRODUCT(($C6:$C55=\"高校生\")*($D6:$D55=\"男\")*($H6:$H55=\"\")))","v":""},{"$f":"IF($I$5=\"\",\"\",SUMPRODUCT(($C6:$C55=\"高校生\")*($D6:$D55=\"男\")*($I6:$I55=\"\")))","v":""}]
[6,null,null,null,null,null,null,null,null,null,null,null,null,null,null,null,null,null,null,"   *** 高校生 女計",{"$f":"IF($E$5=\"\",\"\",SUMPRODUCT(($C6:$C55=\"高校生\")*($D6:$D55=\"女\")*($E6:$E55=\"\")))","v":""},{"$f":"IF($F$5=\"\",\"\",SUMPRODUCT(($C6:$C55=\"高校生\")*($D6:$D55=\"女\")*($F6:$F55=\"\")))","v":""},{"$f":"IF($G$5=\"\",\"\",SUMPRODUCT(($C6:$C55=\"高校生\")*($D6:$D55=\"女\")*($G6:$G55=\"\")))","v":""},{"$f":"IF($H$5=\"\",\"\",SUMPRODUCT(($C6:$C55=\"高校生\")*($D6:$D55=\"女\")*($H6:$H55=\"\")))","v":""},{"$f":"IF($I$5=\"\",\"\",SUMPRODUCT(($C6:$C55=\"高校生\")*($D6:$D55=\"女\")*($I6:$I55=\"\")))","v":""}]
[7,null,null,null,null,null,null,null,null,null,null,null,null,null,null,null,null,null,null,"   *** 大学生 男計",{"$f":"IF($E$5=\"\",\"\",SUMPRODUCT(($C6:$C55=\"大学・専門生\")*($D6:$D55=\"男\")*($E6:$E55=\"\")))","v":""},{"$f":"IF($F$5=\"\",\"\",SUMPRODUCT(($C6:$C55=\"大学・専門生\")*($D6:$D55=\"男\")*($F6:$F55=\"\")))","v":""},{"$f":"IF($G$5=\"\",\"\",SUMPRODUCT(($C6:$C55=\"大学・専門生\")*($D6:$D55=\"男\")*($G6:$G55=\"\")))","v":""},{"$f":"IF($H$5=\"\",\"\",SUMPRODUCT(($C6:$C55=\"大学・専門生\")*($D6:$D55=\"男\")*($H6:$H55=\"\")))","v":""},{"$f":"IF($I$5=\"\",\"\",SUMPRODUCT(($C6:$C55=\"大学・専門生\")*($D6:$D55=\"男\")*($I6:$I55=\"\")))","v":""}]
[8,null,null,null,null,null,null,null,null,null,null,null,null,null,null,null,null,null,null,"   *** 大学生 女計",{"$f":"IF($E$5=\"\",\"\",SUMPRODUCT(($C6:$C55=\"大学・専門生\")*($D6:$D55=\"女\")*($E6:$E55=\"\")))","v":""},{"$f":"IF($F$5=\"\",\"\",SUMPRODUCT(($C6:$C55=\"大学・専門生\")*($D6:$D55=\"女\")*($F6:$F55=\"\")))","v":""},{"$f":"IF($G$5=\"\",\"\",SUMPRODUCT(($C6:$C55=\"大学・専門生\")*($D6:$D55=\"女\")*($G6:$G55=\"\")))","v":""},{"$f":"IF($H$5=\"\",\"\",SUMPRODUCT(($C6:$C55=\"大学・専門生\")*($D6:$D55=\"女\")*($H6:$H55=\"\")))","v":""},{"$f":"IF($I$5=\"\",\"\",SUMPRODUCT(($C6:$C55=\"大学・専門生\")*($D6:$D55=\"女\")*($I6:$I55=\"\")))","v":""}]
[9,null,null,null,null,null,null,null,null,null,null,null,null,null,null,null,null,null,null,"   *** 指導者 男計",{"$f":"IF($E$5=\"\",\"\",SUMPRODUCT(($C6:$C55=\"指導者\")*($D6:$D55=\"男\")*($E6:$E55=\"\")))","v":""},{"$f":"IF($F$5=\"\",\"\",SUMPRODUCT(($C6:$C55=\"指導者\")*($D6:$D55=\"男\")*($F6:$F55=\"\")))","v":""},{"$f":"IF($G$5=\"\",\"\",SUMPRODUCT(($C6:$C55=\"指導者\")*($D6:$D55=\"男\")*($G6:$G55=\"\")))","v":""},{"$f":"IF($H$5=\"\",\"\",SUMPRODUCT(($C6:$C55=\"指導者\")*($D6:$D55=\"男\")*($H6:$H55=\"\")))","v":""},{"$f":"IF($I$5=\"\",\"\",SUMPRODUCT(($C6:$C55=\"指導者\")*($D6:$D55=\"男\")*($I6:$I55=\"\")))","v":""}]
[10,null,null,null,null,null,null,null,null,null,null,null,null,null,null,null,null,null,null,"   *** 指導者 女計",{"$f":"IF($E$5=\"\",\"\",SUMPRODUCT(($C6:$C55=\"指導者\")*($D6:$D55=\"女\")*($E6:$E55=\"\")))","v":""},{"$f":"IF($F$5=\"\",\"\",SUMPRODUCT(($C6:$C55=\"指導者\")*($D6:$D55=\"女\")*($F6:$F55=\"\")))","v":""},{"$f":"IF($G$5=\"\",\"\",SUMPRODUCT(($C6:$C55=\"指導者\")*($D6:$D55=\"女\")*($G6:$G55=\"\")))","v":""},{"$f":"IF($H$5=\"\",\"\",SUMPRODUCT(($C6:$C55=\"指導者\")*($D6:$D55=\"女\")*($H6:$H55=\"\")))","v":""},{"$f":"IF($I$5=\"\",\"\",SUMPRODUCT(($C6:$C55=\"指導者\")*($D6:$D55=\"女\")*($I6:$I55=\"\")))","v":""}]
[11,null,null,null,null,null,null,null,null,null,null,null,null,null,null,null,null,null,null,"   *** 成　人　男計",{"$f":"IF($E$5=\"\",\"\",SUMPRODUCT(($C6:$C55=\"成人\")*($D6:$D55=\"男\")*($E6:$E55=\"\")))","v":""},{"$f":"IF($F$5=\"\",\"\",SUMPRODUCT(($C6:$C55=\"成人\")*($D6:$D55=\"男\")*($F6:$F55=\"\")))","v":""},{"$f":"IF($G$5=\"\",\"\",SUMPRODUCT(($C6:$C55=\"成人\")*($D6:$D55=\"男\")*($G6:$G55=\"\")))","v":""},{"$f":"IF($H$5=\"\",\"\",SUMPRODUCT(($C6:$C55=\"成人\")*($D6:$D55=\"男\")*($H6:$H55=\"\")))","v":""},{"$f":"IF($I$5=\"\",\"\",SUMPRODUCT(($C6:$C55=\"成人\")*($D6:$D55=\"男\")*($I6:$I55=\"\")))","v":""}]
[12,null,null,null,null,null,null,null,null,null,null,null,null,null,null,null,null,null,null,"   *** 成　人　女計",{"$f":"IF($E$5=\"\",\"\",SUMPRODUCT(($C6:$C55=\"成人\")*($D6:$D55=\"女\")*($E6:$E55=\"\")))","v":""},{"$f":"IF($F$5=\"\",\"\",SUMPRODUCT(($C6:$C55=\"成人\")*($D6:$D55=\"女\")*($F6:$F55=\"\")))","v":""},{"$f":"IF($G$5=\"\",\"\",SUMPRODUCT(($C6:$C55=\"成人\")*($D6:$D55=\"女\")*($G6:$G55=\"\")))","v":""},{"$f":"IF($H$5=\"\",\"\",SUMPRODUCT(($C6:$C55=\"成人\")*($D6:$D55=\"女\")*($H6:$H55=\"\")))","v":""},{"$f":"IF($I$5=\"\",\"\",SUMPRODUCT(($C6:$C55=\"成人\")*($D6:$D55=\"女\")*($I6:$I55=\"\")))","v":""}]
[13,null,null,null,null,null,null,null,null,null,null,null,null,null,null,null,null,null,null,"   *** 0-3歳 男計",{"$f":"IF($E$5=\"\",\"\",SUMPRODUCT(($C6:$C55=\"0-3歳\")*($D6:$D55=\"男\")*($E6:$E55=\"\")))","v":""},{"$f":"IF($F$5=\"\",\"\",SUMPRODUCT(($C6:$C55=\"0-3歳\")*($D6:$D55=\"男\")*($F6:$F55=\"\")))","v":""},{"$f":"IF($G$5=\"\",\"\",SUMPRODUCT(($C6:$C55=\"0-3歳\")*($D6:$D55=\"男\")*($G6:$G55=\"\")))","v":""},{"$f":"IF($H$5=\"\",\"\",SUMPRODUCT(($C6:$C55=\"0-3歳\")*($D6:$D55=\"男\")*($H6:$H55=\"\")))","v":""},{"$f":"IF($I$5=\"\",\"\",SUMPRODUCT(($C6:$C55=\"0-3歳\")*($D6:$D55=\"男\")*($I6:$I55=\"\")))","v":""}]
[14,null,null,null,null,null,null,null,null,null,null,null,null,null,null,null,null,null,null,"   *** 0-3歳 女計",{"$f":"IF($E$5=\"\",\"\",SUMPRODUCT(($C19:$C55=\"0-3歳\")*($D19:$D55=\"女\")*($E19:$E55=\"\")))","v":""},{"$f":"IF($F$5=\"\",\"\",SUMPRODUCT(($C19:$C55=\"0-3歳\")*($D19:$D55=\"女\")*($F19:$F55=\"\")))","v":""},{"$f":"IF($G$5=\"\",\"\",SUMPRODUCT(($C19:$C55=\"0-3歳\")*($D19:$D55=\"女\")*($G19:$G55=\"\")))","v":""},{"$f":"IF($H$5=\"\",\"\",SUMPRODUCT(($C19:$C55=\"0-3歳\")*($D19:$D55=\"女\")*($H19:$H55=\"\")))","v":""},{"$f":"IF($I$5=\"\",\"\",SUMPRODUCT(($C19:$C55=\"0-3歳\")*($D19:$D55=\"女\")*($I19:$I55=\"\")))","v":""}]
[15,null,null,null,null,null,null,null,null,null,null,null,null,null,null,null,null,null,null,"   *** 4歳-入学前 男計",{"$f":"IF($E$5=\"\",\"\",SUMPRODUCT(($C6:$C55=\"4歳-入学前\")*($D6:$D55=\"男\")*($E6:$E55=\"\")))","v":""},{"$f":"IF($F$5=\"\",\"\",SUMPRODUCT(($C6:$C55=\"4歳-入学前\")*($D6:$D55=\"男\")*($F6:$F55=\"\")))","v":""},{"$f":"IF($G$5=\"\",\"\",SUMPRODUCT(($C6:$C55=\"4歳-入学前\")*($D6:$D55=\"男\")*($G6:$G55=\"\")))","v":""},{"$f":"IF($H$5=\"\",\"\",SUMPRODUCT(($C6:$C55=\"4歳-入学前\")*($D6:$D55=\"男\")*($H6:$H55=\"\")))","v":""},{"$f":"IF($I$5=\"\",\"\",SUMPRODUCT(($C6:$C55=\"4歳-入学前\")*($D6:$D55=\"男\")*($I6:$I55=\"\")))","v":""}]
[16,null,null,null,null,null,null,null,null,null,null,null,null,null,null,null,null,null,null,"   *** 4歳-入学前 女計",{"$f":"IF($E$5=\"\",\"\",SUMPRODUCT(($C6:$C55=\"4歳-入学前\")*($D6:$D55=\"女\")*($E6:$E55=\"\")))","v":""},{"$f":"IF($F$5=\"\",\"\",SUMPRODUCT(($C6:$C55=\"4歳-入学前\")*($D6:$D55=\"女\")*($F6:$F55=\"\")))","v":""},{"$f":"IF($G$5=\"\",\"\",SUMPRODUCT(($C6:$C55=\"4歳-入学前\")*($D6:$D55=\"女\")*($G6:$G55=\"\")))","v":""},{"$f":"IF($H$5=\"\",\"\",SUMPRODUCT(($C6:$C55=\"4歳-入学前\")*($D6:$D55=\"女\")*($H6:$H55=\"\")))","v":""},{"$f":"IF($I$5=\"\",\"\",SUMPRODUCT(($C6:$C55=\"4歳-入学前\")*($D6:$D55=\"女\")*($I6:$I55=\"\")))","v":""}]
[17]
[18]
[19]
[20]
[21]
[22]
[23]
[24]
[25]
[26]
[27]
[28]
[29]
[30]
[31]
[32]
[33]
[34]
[35]
[36]
[37]
[38]
[39]
[40]
[41]
[42]
[43]
[44]
[45]
[46]
[47]
[48]
[49]
[50]

{"sheet":"食事注文書","index":2,"n_rows":151,"n_cols":47,"rows_kept":151,"cut":false,"hidden":false,"merged":[[55,6,55,15],[108,0,108,5],[109,0,109,5],[108,6,108,11],[109,6,109,11],[107,7,107,11],[151,25,151,26],[150,25,150,26],[149,25,149,26],[148,25,148,26],[147,25,147,26],[146,25,146,26],[145,25,145,26],[139,10,139,16],[150,19,150,21],[150,22,150,24],[148,19,148,21],[145,19,145,21],[145,22,145,24],[146,19,146,21],[146,22,146,24],[110,2,110,6],[115,0,115,16],[116,0,116,16],[24,8,24,9],[25,8,25,9],[26,8,26,9],[27,8,27,9],[28,8,28,9],[29,8,29,9],[30,8,30,9],[31,8,31,9],[32,8,32,9],[14,4,14,15],[30,12,30,14],[63,14,63,16],[64,14,64,16],[120,0,120,16],[121,0,121,16],[122,0,122,16],[24,0,24,1],[24,2,24,3],[25,0,25,1],[25,2,25,3],[26,0,26,1],[26,2,26,3],[28,10,28,11],[17,0,17,1],[17,2,17,3],[111,14,111,16],[112,0,112,4],[112,5,112,10],[112,11,112,13],[112,14,112,16],[53,0,54,0],[15,6,15,16],[24,4,24,7],[117,0,117,16],[110,0,110,1],[110,15,110,16],[111,0,111,4],[111,5,111,10],[111,11,111,13],[41,14,41,15],[36,14,36,15],[37,14,37,15],[38,14,38,15],[39,14,39,15],[40,14,40,15],[36,4,36,7],[37,4,37,7],[38,4,38,7],[39,4,39,7],[37,8,37,9],[37,10,37,11],[38,8,38,9],[41,12,41,13],[40,4,40,7],[63,4,63,7],[64,4,64,7],[107,4,107,6],[127,0,127,2],[128,0,128,2],[126,3,126,10],[127,3,127,10],[145,2,145,3],[131,2,131,3],[132,2,132,3],[127,11,127,16],[128,11,128,16],[128,3,128,10],[138,0,138,1],[138,10,138,16],[131,4,131,6],[132,4,132,6],[133,4,133,6],[137,0,137,1],[137,10,137,16],[133,7,133,9],[134,7,134,9],[134,0,134,1],[134,4,134,6],[135,4,135,6],[136,4,136,6],[137,4,137,6],[135,7,135,9],[136,7,136,9],[137,7,137,9],[134,2,134,3],[135,2,135,3],[138,4,138,6],[62,0,62,1],[63,0,63,1],[64,0,64,1],[62,2,62,3],[63,2,63,3],[64,2,64,3],[123,0,123,16],[124,0,124,16],[125,0,125,16],[113,0,114,0],[113,1,113,2],[113,3,113,4],[113,5,113,16],[114,1,114,16],[118,0,118,16],[119,0,119,16],[62,4,62,7],[136,2,136,3],[100,7,100,9],[102,7,102,9],[65,0,65,1],[65,2,65,3],[65,4,65,7],[65,8,65,9],[75,0,75,1],[75,2,75,3],[75,4,75,7],[75,8,75,9],[78,0,78,1],[78,2,78,3],[78,4,78,7],[78,8,78,9],[85,4,85,7],[86,4,86,7],[76,0,76,1],[76,2,76,3],[76,4,76,7],[76,8,76,9],[80,0,80,1],[77,0,77,1],[77,2,77,3],[77,4,77,7],[151,19,151,21],[151,22,151,24],[143,10,143,16],[142,2,142,3],[143,2,143,3],[142,4,142,6],[143,4,143,6],[142,7,142,9],[143,7,143,9],[144,4,144,6],[145,4,145,6],[144,7,144,9],[145,7,145,9],[151,0,159,16],[147,19,147,21],[146,10,146,16],[147,22,147,24],[148,22,148,24],[149,19,149,21],[149,22,149,24],[149,0,149,1],[149,10,149,16],[146,2,146,3],[149,2,149,3],[140,2,140,3],[141,2,141,3],[140,4,140,6],[141,4,141,6],[144,0,144,1],[144,10,144,16],[140,7,140,9],[141,7,141,9],[137,2,137,3],[138,2,138,3],[139,2,139,3],[140,10,140,16],[139,0,139,1],[140,0,140,1],[139,4,139,6],[146,4,146,6],[149,4,149,6],[146,7,146,9],[149,7,149,9],[147,0,147,1],[147,10,147,16],[148,0,148,1],[148,10,148,16],[147,2,147,3],[148,2,148,3],[147,4,147,6],[148,4,148,6],[147,7,147,9],[148,7,148,9],[146,0,146,1],[131,0,131,1],[131,10,131,16],[132,0,132,1],[131,7,131,9],[133,2,133,3],[142,0,142,1],[142,10,142,16],[143,0,143,1],[145,0,145,1],[145,10,145,16],[144,2,144,3],[134,10,134,16],[135,0,135,1],[135,10,135,16],[136,0,136,1],[136,10,136,16],[138,7,138,9],[139,7,139,9],[133,0,133,1],[133,10,133,16],[132,10,132,16],[132,7,132,9],[141,0,141,1],[141,10,141,16],[126,11,126,12],[103,4,103,9],[105,4,105,6],[95,7,95,9],[96,7,96,9],[97,7,97,9],[98,7,98,9],[99,7,99,9],[100,0,100,4],[97,1,97,4],[98,1,98,4],[99,1,99,4],[97,5,97,6],[98,5,98,6],[99,5,99,6],[100,5,100,6],[95,5,95,6],[96,5,96,6],[95,1,95,4],[96,1,96,4],[126,0,126,2],[102,0,102,3],[102,4,102,6],[107,0,107,3],[53,1,53,2],[54,1,54,16],[50,0,50,1],[50,15,50,16],[51,0,51,4],[51,5,51,10],[51,11,51,13],[51,14,51,16],[52,0,52,4],[52,5,52,10],[52,11,52,13],[52,14,52,16],[53,3,53,4],[53,5,53,16],[0,15,0,16],[0,0,0,1],[47,0,47,1],[48,0,48,1],[47,2,47,3],[48,2,48,3],[47,4,47,7],[48,4,48,7],[47,8,47,9],[48,8,48,9],[47,10,47,11],[48,10,48,11],[1,5,1,10],[2,5,2,10],[1,11,1,13],[2,11,2,13],[36,12,36,13],[37,12,37,13],[38,12,38,13],[39,12,39,13],[47,12,47,13],[40,12,40,13],[48,12,48,13],[1,14,1,16],[1,0,1,4],[2,0,2,4],[5,5,5,16],[22,0,22,1],[22,2,22,3],[23,0,23,1],[23,2,23,3],[4,1,4,16],[3,0,4,0],[13,0,13,1],[6,0,7,1],[8,0,8,1],[9,0,9,1],[10,0,10,1],[11,0,11,1],[3,3,3,4],[3,5,3,16],[2,14,2,16],[6,14,6,16],[6,2,6,4],[6,5,6,7],[6,8,6,10],[6,11,6,13],[3,1,3,2],[19,15,19,16],[20,10,20,11],[20,12,20,14],[16,15,17,16],[18,10,18,11],[18,12,18,14],[18,15,18,16],[16,10,17,11],[16,12,17,14],[19,12,19,14],[19,10,19,11],[16,4,17,7],[16,8,17,9],[19,4,19,7],[20,4,20,7],[18,8,18,9],[19,8,19,9],[20,8,20,9],[18,4,18,7],[21,2,21,3],[16,0,16,3],[20,0,20,1],[20,2,20,3],[21,0,21,1],[18,0,18,1],[18,2,18,3],[19,0,19,1],[19,2,19,3],[21,15,21,16],[22,15,22,16],[20,15,20,16],[21,12,21,14],[31,10,31,11],[31,12,31,14],[22,10,22,11],[22,12,22,14],[23,10,23,11],[23,12,23,14],[26,15,26,16],[31,15,31,16],[25,15,25,16],[30,15,30,16],[25,10,25,11],[25,12,25,14],[23,15,23,16],[24,15,24,16],[24,10,24,11],[24,12,24,14],[31,0,31,1],[31,2,31,3],[30,0,30,1],[30,2,30,3],[30,10,30,11],[26,10,26,11],[27,10,27,11],[21,10,21,11],[21,4,21,7],[22,4,22,7],[23,4,23,7],[21,8,21,9],[22,8,22,9],[23,8,23,9],[31,4,31,7],[25,4,25,7],[26,4,26,7],[27,4,27,7],[28,4,28,7],[29,4,29,7],[30,4,30,7],[27,0,27,1],[28,0,28,1],[28,2,28,3],[29,0,29,1],[29,2,29,3],[29,10,29,11],[29,12,29,14],[29,15,29,16],[28,12,28,14],[27,15,27,16],[28,15,28,16],[26,12,26,14],[27,12,27,14],[27,2,27,3],[35,0,35,1],[35,2,35,3],[34,4,35,7],[34,12,35,13],[34,14,35,15],[32,0,32,1],[32,2,32,3],[34,16,35,16],[36,0,36,1],[36,2,36,3],[34,8,34,11],[35,8,35,9],[35,10,35,11],[36,8,36,9],[36,10,36,11],[32,10,32,11],[32,12,32,14],[32,15,32,16],[34,0,34,3],[32,4,32,7],[37,0,37,1],[37,2,37,3],[38,0,38,1],[38,2,38,3],[39,0,39,1],[39,2,39,3],[42,10,42,11],[43,10,43,11],[44,10,44,11],[40,0,40,1],[40,2,40,3],[40,8,40,9],[40,10,40,11],[42,8,42,9],[43,8,43,9],[44,8,44,9],[41,0,41,1],[41,2,41,3],[41,4,41,7],[41,8,41,9],[41,10,41,11],[38,10,38,11],[39,8,39,9],[39,10,39,11],[49,0,49,1],[49,2,49,3],[42,14,42,15],[43,14,43,15],[44,14,44,15],[45,14,45,15],[46,14,46,15],[47,14,47,15],[48,14,48,15],[49,14,49,15],[49,12,49,13],[49,4,49,7],[45,10,45,11],[46,10,46,11],[46,4,46,7],[45,8,45,9],[46,8,46,9],[49,8,49,9],[49,10,49,11],[56,0,56,3],[56,4,57,7],[56,10,57,11],[57,0,57,1],[57,2,57,3],[42,12,42,13],[43,12,43,13],[44,12,44,13],[45,12,45,13],[46,12,46,13],[42,0,42,1],[43,0,43,1],[44,0,44,1],[45,0,45,1],[46,0,46,1],[42,2,42,3],[43,2,43,3],[44,2,44,3],[45,2,45,3],[46,2,46,3],[42,4,42,7],[43,4,43,7],[44,4,44,7],[45,4,45,7],[58,0,58,1],[58,2,58,3],[58,4,58,7],[58,8,58,9],[58,10,58,11],[59,0,59,1],[59,2,59,3],[59,4,59,7],[59,8,59,9],[59,10,59,11],[60,0,60,1],[60,2,60,3],[60,4,60,7],[60,8,60,9],[60,10,60,11],[61,0,61,1],[61,2,61,3],[61,4,61,7],[61,8,61,9],[61,10,61,11],[65,10,65,11],[66,0,66,1],[66,2,66,3],[66,4,66,7],[66,8,66,9],[66,10,66,11],[66,12,66,13],[67,12,67,13],[68,12,68,13],[69,12,69,13],[69,0,69,1],[69,2,69,3],[69,4,69,7],[69,8,69,9],[69,10,69,11],[67,0,67,1],[67,2,67,3],[67,4,67,7],[67,8,67,9],[67,10,67,11],[68,0,68,1],[68,2,68,3],[68,4,68,7],[68,8,68,9],[68,10,68,11],[56,8,57,9],[56,12,56,16],[57,12,57,13],[57,14,57,16],[58,12,58,13],[59,12,59,13],[60,12,60,13],[61,12,61,13],[65,12,65,13],[58,14,58,16],[59,14,59,16],[60,14,60,16],[61,14,61,16],[65,14,65,16],[62,8,62,9],[63,8,63,9],[64,8,64,9],[62,10,62,11],[63,10,63,11],[64,10,64,11],[62,12,62,13],[63,12,63,13],[64,12,64,13],[62,14,62,16],[66,14,66,16],[67,14,67,16],[68,14,68,16],[69,14,69,16],[72,13,72,14],[72,15,72,16],[73,15,73,16],[74,15,74,16],[71,0,71,3],[72,0,72,1],[72,2,72,3],[71,10,71,16],[72,10,72,12],[73,10,73,12],[71,4,72,7],[71,8,72,9],[73,0,73,1],[73,2,73,3],[73,4,73,7],[73,8,73,9],[74,0,74,1],[74,2,74,3],[74,4,74,7],[74,8,74,9],[79,0,79,1],[79,2,79,3],[79,4,79,7],[79,8,79,9],[79,10,79,12],[80,2,80,3],[80,4,80,7],[80,8,80,9],[80,10,80,12],[88,4,88,7],[85,0,85,1],[81,0,81,1],[81,2,81,3],[81,4,81,7],[81,8,81,9],[82,0,82,1],[82,2,82,3],[82,4,82,7],[82,8,82,9],[84,13,84,14],[85,13,85,14],[86,8,86,9],[85,8,85,9],[87,0,87,1],[86,13,86,14],[75,13,75,14],[76,13,76,14],[75,15,75,16],[76,15,76,16],[77,15,77,16],[78,15,78,16],[79,15,79,16],[80,15,80,16],[81,15,81,16],[82,15,82,16],[83,15,83,16],[85,2,85,3],[83,0,83,1],[83,2,83,3],[83,4,83,7],[84,0,84,1],[84,2,84,3],[84,4,84,7],[86,15,86,16],[87,15,87,16],[88,15,88,16],[89,15,89,16],[84,15,84,16],[85,15,85,16],[90,15,90,16],[91,8,91,9],[90,13,90,14],[91,13,91,14],[84,8,84,9],[84,10,84,12],[85,10,85,12],[87,8,87,9],[91,15,91,16],[91,10,91,12],[87,13,87,14],[88,13,88,14],[89,13,89,14],[86,10,86,12],[87,10,87,12],[88,10,88,12],[89,10,89,12],[90,10,90,12],[73,13,73,14],[74,13,74,14],[77,13,77,14],[78,13,78,14],[79,13,79,14],[80,13,80,14],[81,13,81,14],[83,8,83,9],[83,10,83,12],[82,13,82,14],[83,13,83,14],[81,10,81,12],[82,10,82,12],[74,10,74,12],[78,10,78,12],[75,10,75,12],[76,10,76,12],[77,8,77,9],[77,10,77,12],[94,5,94,6],[93,1,93,4],[93,5,93,6],[93,7,93,9],[89,0,89,1],[86,2,86,3],[87,2,87,3],[88,2,88,3],[89,2,89,3],[89,4,89,7],[90,8,90,9],[88,8,88,9],[89,8,89,9],[94,7,94,9],[94,1,94,4],[86,0,86,1],[91,0,91,1],[91,2,91,3],[91,4,91,7],[90,0,90,1],[90,2,90,3],[90,4,90,7],[88,0,88,1],[87,4,87,7]]}
[2019,null,"　食事等注文書",null,null,null,null,"提出期限：利用日の４週間前までに",null,null,null,null,null,null,null,{"$f":"TODAY()","v":"2019-10-26"},null,null,null,null,"料金",null,null,null,null,null,null,null,null,null,null,null,null,null,null,null,null,null,null,null,null,null,null,null,null,"　魚つかみ炊飯場",15500]
["団体名",null,null,null,null,"担当者名",null,null,null,null,null,"担当者電話番号",null,null,"ＦＡＸ",null,null,null,null,null,null,null,null,null,null,null,null,"■B　定食・弁当・その他",null,null,null,null,null,null,null,null,null,null,null,null,null,null,null,null,null,"　魚つかみ設置海岸",18800]
[{"$f":"IF(ご利用申込書!C2=\"\",\"\",ご利用申込書!C2)","v":""},null,null,null,null,{"$f":"IF(A3=\"\",\"\",ご利用申込書!C7)","v":""},null,null,null,null,null,{"$f":"IF(ご利用申込書!M7=\"\",\"\",ご利用申込書!M7)","v":""},null,null,{"$f":"IF(ご利用申込書!E6=\"\",\"\",ご利用申込書!E6)","v":""},null,null,null,null,null,null,null,null,null,"○",{"$f":"IF(ご利用申込書!D9=\"\",\"\",ご利用申込書!D9)","v":""},null,"　ミックスフライ定食","×対象外",1250,null,"■C　野外炊飯セット",null,"null",null,"食堂",null,null,null,null,null,"朝","昼","夜",null,"　魚つかみ取り魚代（１匹）",560]
["住所",{"$f":"IF(ご利用申込書!D4=\"\",\"\",ご利用申込書!D4)","v":""},null,"e-mail ",null,{"$f":"IF(ご利用申込書!M6=\"\",\"\",ご利用申込書!M6)","v":""},null,null,null,null,null,null,null,null,null,null,null,null,null,null,null,null,null,null,"×",{"$f":"IF(ご利用申込書!G9=\"\",\"\",ご利用申込書!G9)","v":""},null,"　天ぷら定食","×対象外",1250,null,"▼（１）食材",null,"null",null,"体育館",null,null,null,null,null,null,null,null,null,"　タオル",250]
[null,{"$f":"IF(ご利用申込書!C5=\"\",\"\",ご利用申込書!C5)","v":""},null,null,null,null,null,null,null,null,null,null,null,null,null,null,null,null,null,null,null,null,null,null,null,{"$f":"IF(ご利用申込書!J9=\"\",\"\",ご利用申込書!J9)","v":""},null,"　さしみ定食","×対象外",1580,null,"　カレーライス",null,670,null,"講堂",null,null,null,null,null,"6:40-7:20","11:30-12:10","17:00-17:40",null,"　歯ブラシセット",80]
["A．バイキングの注文",null,null,null,null,"☆（バイキングの人数をご記入ください。）",null,null,null,null,null,null,null,null,null,null,null,null,null,null,null,null,null,null,null,{"$f":"IF(ご利用申込書!M9=\"\",\"\",ご利用申込書!M9)","v":""},null,"▼弁当",0.08,0.1,null,"　カレーライスアレルゲン",null,680,null,"つどいの広場",null,null,null,null,null,"7：20-8：00","11:30-12:50","17:00-18:20",null,"　ビーチコーミングクラフト（木枠）",210]
["区分",null,{"$f":"IF(ご利用申込書!D9=\"\",\"\",ご利用申込書!D9)","v":""},null,null,{"$f":"IF(ご利用申込書!G9=\"\",\"\",ご利用申込書!G9)","v":""},null,null,{"$f":"IF(ご利用申込書!J9=\"\",\"\",ご利用申込書!J9)","v":""},null,null,{"$f":"IF(ご利用申込書!M9=\"\",\"\",ご利用申込書!M9)","v":""},null,null,{"$f":"IF(ご利用申込書!P9=\"\",\"\",ご利用申込書!P9)","v":""},null,null,null,null,null,null,null,null,null,null,{"$f":"IF(ご利用申込書!P9=\"\",\"\",ご利用申込書!P9)","v":""},null,"　唐揚げ弁当","○対象",600,null,"　カレーうどん",null,610,null,"臨海広場",null,null,null,null,null,"8：00-8：40","11:30-13:30","17:00-19:00",null,"　干物作り体験（20名以上、指導、お土産付）",1500]
[null,null,"朝","昼","夕","朝","昼","夕","朝","昼","夕","朝","昼","夕","朝","昼","夕","朝","昼","夜",null,"朝","昼","夜","人数",{"$f":"#REF!+#REF!+#REF!+#REF!+#REF!","v":{"$error":"#REF!"}},null,"　ハンバーグ弁当","○対象",600,"○対象","　豚汁ご飯",null,440,null,"チャレンジ広場",null,null,null,null,null,null,"12:10-12:50","17:40-18:20",null,"　まき1束",400]
["中学生以上",null,null,null,null,null,null,null,null,null,null,null,null,null,null,null,null,{"$f":"(C9+F9+I9+L9+O9)*V9","v":0},0,0,{"$f":"R9+T9+S9","v":0},590,740,970,null,null,null,"　みはま弁当","○対象",520,"×対象外","　豚汁うどん",null,440,null,"ふれあい",null,null,null,null,null,null,"12:10-13:30","17:40-19:00",null,"　木炭３ｋ",530]
["小学生",null,null,null,null,null,null,null,null,null,null,null,null,null,null,null,null,0,0,0,{"$f":"R10+T10+S10","v":0},570,720,940,null,null,null,"　三吉弁当","○対象",520,null,"　焼きそば",null,570,null,"ロマン",null,null,null,null,null,null,"12:50-13:30","18:20-19:00",null,"　焼き杉クラフト（杉板）",260]
["未就学児",null,null,null,null,null,null,null,null,null,null,null,null,null,null,null,null,0,0,0,0,480,610,820,null,null,null,"　キッズ弁当","○対象",430,null,"　豚汁・焼きそば（米80g）",null,750,null,"芝生広場",null,null,null,null,null,"弁当注文","弁当注文","弁当注文",null,"　塩（1kgあたり）",145]
["合計",null,{"$f":"SUM(C9:C11)","v":0},{"$f":"SUM(D9:D11)","v":0},0,0,0,0,0,0,0,0,0,0,0,0,0,null,null,"BAIKINNGU ",{"$f":"U9+U10+U11","v":0},null,null,null,null,null,null,"　弁当配送料","×対象外","別途",null,"　豚肉鉄板焼き",null,960,null,"玄関（階段上）",null,null,null,null,null,"野炊：ふれ","野炊：ふれ","野炊：ふれ",null,"　魚さばき指導(10分)\n（10分程度）",0]
[null,null,null,null,null,null,null,null,null,null,null,null,null,null,null,null,null,null,null,null,null,null,null,null,null,null,null,null,null,null,null,"　牛肉・豚肉鉄板焼き",null,1610,null,"玄関（階段下）",null,null,null,null,null,"野炊：ロＡ","野炊：ロＡ","野炊：ロＡ",null,"　魚さばき指導1人1時間\n（11分程度）",4300]
["カレー希望　○",null,"→",null,null,"→",null,null,"→",null,null,"→",null,null,"→",null,null,null,null,null,null,null,null,null,null,null,null,"▼パン",null,0.08,null,"　海鮮バーベキュー",null,1610,null,"第３駐車場",null,null,null,null,null,"野炊：ロＢ","野炊：ロＢ","野炊：ロＢ",null,"　魚の調理（魚つかみアジ）",160]
[null,null,null,null,"※カレーランチは１０月から２月までの期間限定ですが、混雑時は注文できない場合があります。",null,null,null,null,null,null,null,null,null,null,null,null,null,null,null,null,null,null,null,null,null,null,"小倉＆ネオ","○対象",110,null,"　カートンドック",null,320,null,"テニスコート",null,null,null,null,null,null,null,null,null,"　魚の調理（地引網）",230]
["Ｂ．定食/弁当・飲み物・パン等の注文",null,null,null,null,null,"※施設外で食べられる場合(テイクアウト）は軽減税率対象となります。",null,null,null,null,null,null,null,null,null,null,null,null,null,null,null,null,null,null,null,null,"サンドロールチョコ","○対象",110,null,"　おにぎりセット（米70g）",null,95,null,"小野浦海岸",null,null,null,null,null,null,null,null,null,"　砂糖（1kgあたり）",255]
["受け取り日時",null,null,null,"注文品名",null,null,null,"軽減税率対象",null,"数量",null,"受け取り場所",null,null,"備考",null,null,null,null,null,null,null,null,null,null,null,"サンドロールメロン","○対象",110,null,"　おにぎり材料（米なし）",null,45,null,"第１研",null,null,null,null,null,null,null,null,null,"　醤油（1リットルあたり）",275]
["月　日",null,"時刻",null,null,null,null,null,null,null,null,null,null,null,null,null,null,null,null,null,null,null,null,null,null,null,null,null,null,null,null,"　ご飯を食堂で炊く",null,35,null,"第２研",null,null,null,null,null,null,null,null,null,"　地引→魚つかみ(4/1～9/15）",46500]
[null,null,null,null,null,null,null,null,{"$f":"IF(E19=\"\",\"\",VLOOKUP(E19,定食弁当,2,FALSE))","v":""},null,null,null,null,null,null,null,null,{"$f":"IF(E19=\"\",\"\",VLOOKUP(E19,定食弁当,3,FALSE)*K19)","v":""},null,null,null,null,null,null,null,null,null,"　粒あんパン","○対象",125,null,"　米（１０g）",null,10,null,"第３研",null,null,null,null,null,null,null,null,null,"　地引き網 魚ｱﾘ(4/1～9/15）",68000]
[null,null,null,null,null,null,null,null,"",null,null,null,null,null,null,null,null,"",null,null,null,null,null,null,null,null,null,"　こしあんパン","○対象",125,null,"　指定ゴミ袋(処理費用込)",null,150,null,"第４研",null,null,null,null,null,null,null,null,null,"　竹とんぼ材料",110]
[null,null,null,null,null,null,null,null,"",null,null,null,null,null,null,null,null,"",null,null,null,null,null,null,null,null,null,"　クリームパン","○対象",125,null,"▼（２）焚き付けなど",null,"null",null,"第５研",null,null,null,null,null,null,null,null,null,"　湯呑生地",610]
[null,null,null,null,null,null,null,null,"",null,null,null,null,null,null,null,null,"",null,null,null,null,null,null,null,null,null,"　ジャムパン","○対象",125,null,"　木炭（３kgあたり）",null,530,null,"第６研"]
[null,null,null,null,null,null,null,null,"",null,null,null,null,null,null,null,null,"",null,null,null,null,null,null,null,null,null,null,null,null,null,"　焚き付け（１束あたり）",null,400,null,"第７研"]
[null,null,null,null,null,null,null,null,"",null,null,null,null,null,null,null,null,"",null,null,null,null,null,null,null,null,null,"▼おにぎり",null,"null",null,"　チャッカマン",null,130,null,"第８研"]
[null,null,null,null,null,null,null,null,"",null,null,null,null,null,null,null,null,"",null,null,null,null,null,null,null,null,null,"　焼きおにぎり","○対象",110,null,"　着火剤",null,50,null,"第９研"]
[null,null,null,null,null,null,null,null,"",null,null,null,null,null,null,null,null,"",null,null,null,null,null,null,null,null,null,null,null,null,null,null,null,null,null,"第10研"]
[null,null,null,null,null,null,null,null,"",null,null,null,null,null,null,null,null,"",null,null,null,null,null,null,null,null,null,"▼飲み物",null,"null",null,"■その他単品",null,"null",null,"施設外"]
["",null,null,null,null,null,null,null,"",null,null,null,null,null,null,null,null,"",null,null,null,null,null,null,null,null,null,"　ピクニックコーヒー（紙ﾊﾟｯｸ）","○対象",110,null,"　カレー皿（プラ楕円）",null,25]
[null,null,null,null,null,null,null,null,"",null,null,null,null,null,null,null,null,"",null,null,null,null,null,null,null,null,null,"　サンキストアップル（紙ﾊﾟｯｸ）","○対象",110,null,"　紙皿１８ｃｍ（薄手）",null,15]
[null,null,null,null,null,null,null,null,"",null,null,null,null,null,null,null,null,"",null,null,null,null,null,null,null,null,null,"　緑茶（500mlペット）","○対象",125,null,"　紙皿２２ｃｍ（厚手）",null,35]
[null,null,null,null,null,null,null,null,"",null,null,null,null,null,null,null,null,"",null,null,null,null,null,null,null,null,null,"　ウーロン茶（500mlペット）","○対象",125,null,"　どんぶり",null,30]
[null,null,null,null,null,null,null,null,"",null,null,null,null,null,null,null,null,"",null,null,null,null,null,null,null,null,null,"　麦茶（500mlペット）","○対象",125,null,"　紙コップ",null,6,null,null,"■D．ファイヤー・キャンドル用品",null,"null"]
[null,null,null,null,null,null,null,null,"",null,null,null,null,null,null,null,null,"",null,"bento",{"$f":"SUM(R19:R33)","v":0},null,null,null,null,null,null,"　水（500mlペット）","○対象",125,null,"　プラスプーン",null,10,null,null,"ファイヤーＡｾｯﾄ（1時間）",1,10800]
["C．野外炊飯の注文",null,null,null,null,null,null,null,null,null,null,null,null,null,null,null,null,{"$f":"IF(E34=\"\",\"\",VLOOKUP(E34,$AB$3:$AD$55,3,)*K34)","v":""},null,null,null,null,null,null,null,null,null,"　ストレートティー（500mlペット）","○対象",125,null,"　割り箸",null,5,null,null,"ファイヤーＢｾｯﾄ（2時間）",1,15100]
["受け取り日時",null,null,null,"注文品名",null,null,null,"班構成",null,null,null,"数量",null,"受け取り場所",null,"備考",null,null,null,null,null,null,null,null,null,null,"　アクエリアス（500mlペット）","○対象",145,null,"　軍手",null,30]
["月　日",null,"時刻",null,null,null,null,null,"人数(8～12人）",null,"班の数",null,null,null,null,null,null,null,null,null,null,null,null,null,null,null,null,"　ポカリスエット（500mlペット）","○対象",145,null,"　軍手（綿）",null,60,null,null,"丸太",null,500]
[null,null,null,null,null,null,null,null,null,null,null,null,{"$f":"IF(E37=\"\",\"\",I37*K37)","v":""},null,null,null,null,{"$f":"IF(E37=\"\",\"\",VLOOKUP(E37,$AF$3:$AH$38,3,)*M37)","v":""},null,null,null,null,null,null,null,null,null,"　コカコーラ1.5L ","○対象",315,null,"　アルミホイル",null,165,null,null,"まき",null,400]
[null,null,null,null,null,null,null,null,null,null,null,null,{"$f":"IF(E38=\"\",\"\",I38*K38)","v":""},null,null,null,null,"",null,null,null,null,null,null,null,null,null,"　バヤリースオレンジ1.5","○対象",315,null,null,null,null,null,null,"こわ",null,400]
[null,null,null,null,null,null,null,null,null,null,null,null,"",null,null,null,null,"",null,null,null,null,null,null,null,null,null,"　バヤリースアップル1.5","○対象",315,null,"　☆晴天時",null,null,null,null,"灯油（１ﾘｯﾄﾙ）",null,160]
[null,null,null,null,null,null,null,null,null,null,null,null,"",null,null,null,null,"",null,null,null,null,null,null,null,null,null,"　三ツ矢サイダー1.5","○対象",315,null,"　◆荒天時",null,null,null,null,"トーチ棒",null,380]
[null,null,null,null,null,null,null,null,null,null,null,null,"",null,null,null,null,"",null,null,null,null,null,null,null,null,null,"　緑茶（2Ｌペット）","○対象",230,null,null,null,null,null,null,"ろうそく　１号\n　（径9mm）","食堂事務室",10]
[null,null,null,null,null,null,null,null,null,null,null,null,{"$f":"IF(E42=\"\",\"\",I42*K42)","v":""},null,null,null,null,"",null,null,null,null,null,null,null,null,null,"　ウーロン茶（2Ｌペット）","○対象",230,null,"晴天実施",null,null,null,null,"ろうそく２０号\n　（径21mm）","食堂事務室",155]
[null,null,null,null,null,null,null,null,null,null,null,null,"",null,null,null,null,"",null,null,null,null,null,null,null,null,null,"　麦茶（2Ｌペット）","○対象",230,null,"確定","一括で発行","あり","退所時までに現金払い",null,"アルミホイル","食堂事務室",165]
[null,null,null,null,null,null,null,null,null,null,null,null,"",null,null,null,null,"",null,null,null,null,null,null,null,null,null,"　水（２Ｌペット）","○対象",200,null,"雨天実施","分割して発行","なし","後日振込み",null,"アルミカップ（500枚）","食堂事務室",870]
[null,null,null,null,null,null,null,null,null,null,null,null,"",null,null,null,null,"",null,null,null,null,null,null,null,null,null,"　アクエリアス（２Ｌペット）","○対象",320]
[null,null,null,null,null,null,null,null,null,null,null,null,"",null,null,null,null,"",null,null,null,null,null,null,null,null,null,"　ポカリスエット（2Ｌペット）","○対象",320]
[null,null,null,null,null,null,null,null,null,null,null,null,"",null,null,null,null,"",null,null,null,null,null,null,null,null,null,"　氷（１キロ）","○対象",210]
[null,null,null,null,null,null,null,null,null,null,null,null,"",null,null,null,null,"",null,null,null,null,null,null,null,null,null,"　プリン","○対象",85]
[null,null,null,null,null,null,null,null,null,null,null,null,"",null,null,null,null,"",null,null,null,null,null,null,null,null,null,"　コーヒーゼリー","○対象",60,null,null,"■E．体験・教材等"]
[null,null,null,null,null,null,null,null,null,null,null,null,"",null,null,null,null,"",null,"yasui ",{"$f":"SUM(R37:R50)","v":0},null,null,null,null,null,null,"　オレンジゼリー","○対象",60,null,null,"▼（１）地引網"]
[2019,null,"　教材等注文書",null,null,null,null,"提出期限：利用日の４週間前までに",null,null,null,null,null,null,null,{"$f":"TODAY()","v":"2019-10-26"},null,null,null,null,null,null,null,null,null,null,null,"　アイスクリーム","○対象",145,null,null,"　地引き網 魚ｱﾘ(4/1～9/15）","小野浦海岸\n屋外ステージ北",68000]
["団体名",null,null,null,null,"担当者名",null,null,null,null,null,"電話番号",null,null,"ＦＡＸ",null,null,null,null,null,null,null,null,null,null,null,null,null,null,null,null,null,"　地引→魚つかみ(4/1～9/15）","小野浦海岸\n屋外ステージ北",46500]
[{"$f":"A3","v":""},null,null,null,null,{"$f":"F3","v":""},null,null,null,null,null,{"$f":"L3","v":""},null,null,{"$f":"O3","v":""},null,null,null,null,null,null,null,null,null,null,null,null,null,null,null,null,null,"▼（２）魚のつかみ取り"]
["住所",{"$f":"B4","v":""},null,"e-mail ",null,{"$f":"F4","v":""},null,null,null,null,null,null,null,null,null,null,null,null,null,null,null,null,null,null,null,null,null,"　アイスクリーム","○対象",145,null,null,"　魚つかみ設置海岸(魚代別途)",null,18800]
[null,{"$f":"B5","v":""},null,null,null,null,null,null,null,null,null,null,null,null,null,null,null,null,null,null,null,null,null,null,null,null,null,"　アクエリアス（２Ｌペット）","○対象",320,null,null,"　魚つかみ炊飯場(魚代別途)",null,15500]
["D．ファイヤー・キャンドル用品の注文",null,null,null,null,null,"※ファイヤーのセットには灯油は含まれていません。",null,null,null,null,null,null,null,null,null,null,null,null,null,null,null,null,null,null,null,null,"　アクエリアス（500mlペット）","○対象",145,null,null,"　魚つかみ取り魚代（１匹）",null,560]
["受け取り日時",null,null,null,"注文品名",null,null,null,"数量",null,"受け取り場所",null,"備考",null,null,null,null,null,null,null,null,null,null,null,null,null,null,"　ウーロン茶（2Ｌペット）","○対象",230,null,null,"▼（３）魚の調理指導・調理"]
["月　日",null,"時刻",null,null,null,null,null,null,null,null,null,"実施",null,"その他",null,null,null,null,null,null,null,null,null,null,null,null,"　ウーロン茶（500mlペット）","○対象",125,null,null,"　魚さばき指導(10分)",null,0]
[null,null,null,null,null,null,null,null,null,null,null,null,null,null,null,null,null,{"$f":"IF(E59=\"\",\"\",VLOOKUP(E59,$AK$31:$AM$45,3,FALSE)*I59)","v":""},null,null,null,null,null,null,null,null,null,"　オレンジゼリー","○対象",60,null,null,"　魚さばき指導(1人1時間)",null,4300]
[null,null,null,null,null,null,null,null,null,null,null,null,null,null,null,null,null,{"$f":"IF(E60=\"\",\"\",VLOOKUP(E60,$AK$31:$AM$45,3,FALSE)*I60)","v":""},null,null,null,null,null,null,null,null,null,"　唐揚げ弁当","○対象",600,null,null,"　魚の調理（地引網）","食堂",230]
[null,null,null,null,null,null,null,null,null,null,null,null,null,null,null,null,null,"",null,null,null,null,null,null,null,null,null,"　キッズ弁当","○対象",430,null,null,"　魚の調理（魚つかみアジ）","食堂",160]
[null,null,null,null,null,null,null,null,null,null,null,null,null,null,null,null,null,"",null,null,null,null,null,null,null,null,null,"　クリームパン","○対象",125,null,null,"　木炭３ｋ",null,530]
[null,null,null,null,null,null,null,null,null,null,null,null,null,null,null,null,null,"",null,null,null,null,null,null,null,null,null,"　コーヒーゼリー","○対象",60,null,null,"　まき1束",null,400]
[null,null,null,null,null,null,null,null,null,null,null,null,null,null,null,null,null,"",null,null,null,null,null,null,null,null,null,"　氷（１キロ）","○対象",210,null,null,"　醤油（1リットルあたり）",null,275]
[null,null,null,null,null,null,null,null,null,null,null,null,null,null,null,null,null,"",null,null,null,null,null,null,null,null,null,"　コカコーラ1.5L ","○対象",315,null,null,"　砂糖（1kgあたり）",null,255]
[null,null,null,null,null,null,null,null,null,null,null,null,null,null,null,null,null,"",null,null,null,null,null,null,null,null,null,"　こしあんパン","○対象",125,null,null,"　塩（1kgあたり）",null,145]
[null,null,null,null,null,null,null,null,null,null,null,null,null,null,null,null,null,"",null,null,null,null,null,null,null,null,null,"　さしみ定食","×対象外",1580,null,null,"▼（４）干物づくり"]
[null,null,null,null,null,null,null,null,null,null,null,null,null,null,null,null,null,"",null,null,null,null,null,null,null,null,null,"　サンキストアップル（紙ﾊﾟｯｸ）","○対象",110,null,null,"　干物作り体験（20名以上、指導、お土産付）",null,1500]
[null,null,null,null,null,null,null,null,null,null,null,null,null,null,null,null,null,"",null,null,null,null,null,null,null,null,null,"　三吉弁当","○対象",520,null,null,"▼（５）一刀彫",null,"null"]
[null,null,null,null,null,null,null,null,null,null,null,null,null,null,null,null,null,"","faiya-",{"$f":"SUM(R59:R70)","v":0},null,null,null,null,null,null,null,"　ジャムパン","○対象",125,null,null,"　湯呑生地","食堂事務室",610]
["E．体験・教材の注文",null,null,null,null,null,null,null,null,null,null,null,null,null,null,null,null,null,null,null,null,null,null,null,null,null,null,"　ストレートティー（500mlペット）","○対象",125,null,null,"▼（６）クラフト材料",null,"null"]
["受け取り日時",null,null,null,"商品名",null,null,null,"数量",null,"備考",null,null,null,null,null,null,null,null,null,null,null,null,null,null,null,null,"　天ぷら定食","×対象外",1250,null,null,"　竹とんぼ材料","食堂事務室",110]
["月　　日",null,"時刻",null,null,null,null,null,null,null,"実施について",null,null,"受け取り場所",null,"その他",null,null,null,null,null,null,null,null,null,null,null,"　バヤリースアップル1.5","○対象",315,null,null,"　ビーチコーミングクラフト（木枠）","食堂事務室",210]
[null,null,null,null,null,null,null,null,null,null,null,null,null,null,null,null,null,{"$f":"IF(E74=\"\",\"\",VLOOKUP(E74,$AT$1:$AU$21,2,FALSE)*I74)","v":""},null,null,null,null,null,null,null,null,null,"　バヤリースオレンジ1.5","○対象",315,null,null,"　焼き杉クラフト（杉板）","食堂事務室",260]
[null,null,null,null,null,null,null,null,null,null,null,null,null,null,null,null,null,"",null,null,null,null,null,null,null,null,null,"　ハンバーグ弁当","○対象",600,null,null,"▼（７）洗面・入浴用品",null,"null"]
[null,null,null,null,null,null,null,null,null,null,null,null,null,null,null,null,null,"",null,null,null,null,null,null,null,null,null,"　ピクニックコーヒー（紙ﾊﾟｯｸ）","○対象",110,null,null,"　タオル",null,250]
[null,null,null,null,null,null,null,null,null,null,null,null,null,null,null,null,null,"",null,null,null,null,null,null,null,null,null,"　プリン","○対象",85,null,null,"　歯ブラシセット",null,80]
[null,null,null,null,null,null,null,null,null,null,null,null,null,null,null,null,null,"",null,null,null,null,null,null,null,null,null,"　弁当配送料","×対象外","別途"]
[null,null,null,null,null,null,null,null,null,null,null,null,null,null,null,null,null,"",null,null,null,null,null,null,null,null,null,"　ポカリスエット（2Ｌペット）","○対象",320]
[null,null,null,null,null,null,null,null,null,null,null,null,null,null,null,null,null,"",null,null,null,null,null,null,null,null,null,"　ポカリスエット（500mlペット）","○対象",145]
[null,null,null,null,null,null,null,null,null,null,null,null,null,null,null,null,null,"",null,null,null,null,null,null,null,null,null,"　水（２Ｌペット）","○対象",200]
[null,null,null,null,null,null,null,null,null,null,null,null,null,null,null,null,null,"",null,null,null,null,null,null,null,null,null,"　水（500mlペット）","○対象",125]
[null,null,null,null,null,null,null,null,null,null,null,null,null,null,null,null,null,"",null,null,null,null,null,null,null,null,null,"　ミックスフライ定食","×対象外",1250]
[null,null,null,null,null,null,null,null,null,null,null,null,null,null,null,null,null,"",null,null,null,null,null,null,null,null,null,"　三ツ矢サイダー1.5","○対象",315]
[null,null,null,null,null,null,null,null,null,null,null,null,null,null,null,null,null,"",null,null,null,null,null,null,null,null,null,"　みはま弁当","○対象",520]
[null,null,null,null,null,null,null,null,null,null,null,null,null,null,null,null,null,"",null,null,null,null,null,null,null,null,null,"　麦茶（2Ｌペット）","○対象",230]
[null,null,null,null,null,null,null,null,null,null,null,null,null,null,null,null,null,"",null,null,null,null,null,null,null,null,null,"　麦茶（500mlペット）","○対象",125]
[null,null,null,null,null,null,null,null,null,null,null,null,null,null,null,null,null,"",null,null,null,null,null,null,null,null,null,"　緑茶（2Ｌペット）","○対象",230]
[null,null,null,null,null,null,null,null,null,null,null,null,null,null,null,null,null,"",null,null,null,null,null,null,null,null,null,"　緑茶（500mlペット）","○対象",125]
[null,null,null,null,null,null,null,null,null,null,null,null,null,null,null,null,null,"",null,null,null,null,null,null,null,null,null,"　焼きおにぎり","○対象",110]
[null,null,null,null,null,null,null,null,null,null,null,null,null,null,null,null,null,"",null,null,null,null,null,null,null,null,null,"　粒あんパン","○対象",125]
[null,null,null,null,null,null,null,null,null,null,null,null,null,null,null,null,null,"","taiken",{"$f":"SUM(R74:R92)","v":0},null,null,null,null,null,null,null,"■B　定食・弁当・その他"]
["Ｇ．料金",null,null,null,null,null,null,null,null,null,null,null,null,null,null,null,null,null,null,null,null,null,null,null,null,null,null,"▼おにぎり",null,"null"]
[null,"内容",null,null,null,"料金概算",null,"備考",null,null,null,null,null,null,null,null,null,null,null,null,null,null,null,null,null,null,null,"▼飲み物",null,"null"]
["A","バイキング",null,null,null,{"$f":"U12","v":0},null,null,null,null,null,null,null,null,null,null,null,null,null,null,null,null,null,null,null,null,null,"▼パン",null,0.08]
["B","定食/弁当・飲み物",null,null,null,{"$f":"U33","v":0},null,null,null,null,null,null,null,null,null,null,null,null,null,null,null,null,null,null,null,null,null,"▼弁当",0.08,0.1]
["C","野外炊飯",null,null,null,{"$f":"U50","v":0},null,null,null,null,null,null,null,null,null,null,null,null,null,null,null,null,null,null,null,null,null,"小倉＆ネオ","○対象",110]
["D","ファイヤー・キャンドル",null,null,null,{"$f":"T70","v":0},null,null,null,null,null,null,null,null,null,null,null,null,null,null,null,null,null,null,null,null,null,"サンドロールチョコ","○対象",110]
["E","体験・教材",null,null,null,{"$f":"T92","v":0},null,null,null,null,null,null,null,null,null,null,null,null,null,null,null,null,null,null,null,null,null,"サンドロールメロン","○対象",110]
[]
["合計",null,null,null,null,{"$f":"SUM(F95:I100)","v":0}]
[]
["　Ｈ．食物アレルギー　　→",null,null,null,null,null,null,"←ありなしを記入"]
[null,null,null,null,"※ありの場合はアレルギー確認シートの提出をお願いします。"]
[]
["　Ｉ．支払い方法",null,null,null,null,null,null,"←現金か振込みを記入"]
[]
["　J．領収書等のあて先",null,null,null,"領収書の発行方法",null,null,null,null,null,null,null,"←ex.研修者と引率者と分割するか、一括か。"]
["①",null,null,null,null,null,"②",null,null,null,null,null,"←分割発行であて先が異なる場合に記入。"]
["③",null,null,null,null,null,"④"]
[2019,null,"　食物アレルギー確認シート",null,null,null,null,null,"提出最終期限：利用日の７日前までに",null,null,null,null,null,null,{"$f":"TODAY()","v":"2019-10-26"},null,{"$f":"S111","v":"※7品目"},"※7品目"]
["団体名",null,null,null,null,"担当者名",null,null,null,null,null,"電話番号",null,null,"ＦＡＸ",null,null,{"$f":"S112","v":"えび"},"えび"]
[{"$f":"A3","v":""},null,null,null,null,{"$f":"F3","v":""},null,null,null,null,null,{"$f":"L3","v":""},null,null,{"$f":"O3","v":""},null,null,"かに","かに"]
["住所",{"$f":"B4","v":""},null,"e-mail ",null,{"$f":"F4","v":""},null,null,null,null,null,null,null,null,null,null,null,"小麦","小麦"]
[null,{"$f":"B5","v":""},null,null,null,null,null,null,null,null,null,null,null,null,null,null,null,"そば","そば"]
["１　利用団体代表者は、当食堂のホームページに掲載してあるメニュー、原材料使用表を確認してください。",null,null,null,null,null,null,null,null,null,null,null,null,null,null,null,null,"卵","卵"]
["２　メニュー内に該当する食物アレルギーがある場合は、このシートに記載し、利用団体代表者が取りまとめ、ご利用日の７日前までに、メールかファックスで当食堂にご提出ください。",null,null,null,null,null,null,null,null,null,null,null,null,null,null,null,null,"乳","乳"]
["３　メニューの内容が変更になる場合がありますので、ご利用日の１０日前にホームページで再度ご確認ください。",null,null,null,null,null,null,null,null,null,null,null,null,null,null,null,null,"落花生","落花生"]
[null,null,null,null,null,null,null,null,null,null,null,null,null,null,null,null,null,"※20品目","※20品目"]
[null,null,null,null,null,null,null,null,null,null,null,null,null,null,null,null,null,"あわび","あわび"]
[null,null,null,null,null,null,null,null,null,null,null,null,null,null,null,null,null,"いか","いか"]
[null,null,null,null,null,null,null,null,null,null,null,null,null,null,null,null,null,"いくら","いくら"]
[null,null,null,null,null,null,null,null,null,null,null,null,null,null,null,null,null,"オレンジ","オレンジ"]
[null,null,null,null,null,null,null,null,null,null,null,null,null,null,null,null,null,"カシューナッツ","カシューナッツ"]
[null,null,null,null,null,null,null,null,null,null,null,null,null,null,null,null,null,"キウイフルーツ","キウイフルーツ"]
[null,null,null,null,null,null,null,null,null,null,null,null,null,null,null,null,null,"牛肉","牛肉"]
["利用者氏名",null,null,null,null,null,null,null,null,null,null,"利用期間",null,null,null,null,null,"くるみ","くるみ"]
["保護者氏名",null,null,null,null,null,null,null,null,null,null,"　　月　　　日（　　）～　　　月　　　日（　　）",null,null,null,null,null,"ごま","ごま"]
["緊急連絡先",null,null,null,null,null,null,null,null,null,null,null,null,null,null,null,null,"さけ","さけ"]
[null,null,null,null,null,null,null,null,null,null,null,null,null,null,null,null,null,"さば","さば"]
["アレルギー対応確認欄",null,null,null,null,null,null,null,null,null,null,null,null,null,null,null,null,"大豆","大豆"]
["利用日",null,"食事内容",null,"除去希望食品",null,null,"アレルギー名",null,null,"対応方法",null,null,null,null,null,null,"鶏肉","鶏肉"]
[null,null,null,null,null,null,null,null,null,null,null,null,null,null,null,null,null,"バナナ","バナナ"]
[null,null,null,null,null,null,null,null,null,null,null,null,null,null,null,null,null,"豚肉","豚肉"]
[null,null,null,null,null,null,null,null,null,null,null,null,null,null,null,null,null,"まつたけ","まつたけ"]
[null,null,null,null,null,null,null,null,null,null,null,null,null,null,null,null,null,"もも","もも"]
[null,null,null,null,null,null,null,null,null,null,null,null,null,null,null,null,null,"やまいも","やまいも"]
[null,null,null,null,null,null,null,null,null,null,null,null,null,null,null,null,null,"りんご","りんご"]
[null,null,null,null,null,null,null,null,null,null,null,null,null,null,null,null,null,"ゼラチン","ゼラチン"]
[null,null,null,null,null,null,null,null,null,null,null,null,null,null,null,null,null,"その他"]
[]
[]
[]
[]
[]
[null,null,null,null,null,null,null,null,null,null,null,null,null,null,null,null,null,null,null,null,null,null,null,null,null,null,null,"自分で除去"]
[null,null,null,null,null,null,null,null,null,null,null,null,null,null,null,null,null,null,null,null,null,null,null,null,null,null,null,"全て持ち込み"]
[null,null,null,null,null,null,null,null,null,null,null,null,null,null,null,null,null,null,null,null,null,null,null,null,null,null,null,"他の食品をつめた弁当"]
[null,null,null,null,null,null,null,null,null,null,null,null,null,null,null,null,null,null,null,null,null,null,null,null,null,null,null,"その他（下記に記載）"]
[]
["【備考】※食品の持ち込みや冷凍保管と湯煎による解凍など具体的にご記入ください。"]

{"sheet":"物品使用届","index":3,"n_rows":150,"n_cols":23,"rows_kept":150,"cut":false,"hidden":false,"merged":[[9,5,9,8],[14,5,14,8],[19,5,19,8],[7,7,7,8],[11,0,11,3],[17,0,17,3],[16,0,16,3],[27,4,27,5],[11,7,11,8],[12,7,12,8],[16,7,16,8],[17,7,17,8],[21,7,21,8],[22,7,22,8],[26,7,26,8],[27,7,27,8],[11,4,11,5],[12,4,12,5],[16,4,16,5],[17,4,17,5],[13,0,13,8],[27,0,27,3],[27,9,27,10],[0,0,0,12],[1,11,1,12],[8,0,8,8],[8,9,8,10],[6,4,6,5],[7,4,7,5],[6,7,6,8],[23,0,23,8],[23,9,23,10],[24,1,24,4],[24,9,24,10],[25,0,25,8],[9,1,9,4],[9,9,9,10],[26,0,26,3],[26,9,26,10],[20,0,20,8],[20,9,20,10],[21,0,21,3],[21,9,21,10],[22,0,22,3],[22,9,22,10],[22,4,22,5],[21,4,21,5],[24,5,24,8],[26,4,26,5],[25,9,25,10],[17,9,17,10],[18,0,18,8],[18,9,18,10],[19,1,19,4],[19,9,19,10],[16,9,16,10],[4,1,4,4],[4,9,4,10],[4,12,7,12],[7,0,7,3],[7,9,7,10],[13,9,13,10],[14,1,14,4],[14,9,14,10],[15,0,15,8],[15,9,15,10],[12,0,12,3],[12,9,12,10],[10,0,10,8],[10,9,10,10],[11,9,11,10],[3,13,6,13],[5,0,5,8],[5,9,5,10],[6,0,6,3],[6,9,6,10],[4,5,4,8],[1,0,1,2],[1,3,1,9],[2,0,2,8],[2,9,2,10],[3,0,3,8],[3,9,3,10]]}
["◆愛知県美浜少年自然の家　物品ご利用申込書　　（必要事項をご入力ください。）",null,null,null,null,null,null,null,null,null,null,null,null,null,null,null,null,null,"場所"]
["団体名",null,null,{"$f":"IF(ご利用申込書!C2=\"\",\"\",ご利用申込書!C2)","v":""},null,null,null,null,null,null,"担当者名",{"$f":"IF(ご利用申込書!C7=\"\",\"\",ご利用申込書!C7)","v":""},null,null,"物品名　(在庫数)",null,null,null,"講堂"]
["使　用　日　時",null,null,null,null,null,null,null,null,"品　　　　　　名",null,"数　量","使　用　場　所",null,"●　創作活動用具",null,null,null,"体育館",null,null,null,{"$f":"IF(ご利用申込書!D9=\"\",\"\",ご利用申込書!D9)","v":""}]
[null,null,null,null,null,null,null,null,null,null,null,null,null,null,"工作用トレー（400）",null,null,null,"コミュニティーホール",null,null,null,{"$f":"IF(ご利用申込書!G9=\"\",\"\",ご利用申込書!G9)","v":""}]
[null,null,null,null,null,{"$f":"IF(B5=\"\",\"\",B5)","v":""},null,null,null,null,null,null,"memo",null,"彫刻刀（５本セット） （90）",null,null,null,"つどいの広場",null,null,null,{"$f":"IF(ご利用申込書!J9=\"\",\"\",ご利用申込書!J9)","v":""}]
[null,null,null,null,null,null,null,null,null,null,null,null,null,null,"パレット（100）",null,null,null,"チャレンジ広場",null,null,null,{"$f":"IF(ご利用申込書!M9=\"\",\"\",ご利用申込書!M9)","v":""}]
["受け渡し時刻",null,null,null,null,null,"：",null,null,null,null,null,null,null,"筆洗いバケツ（100）",null,null,null,"ふれあい広場",null,null,null,{"$f":"IF(ご利用申込書!P9=\"\",\"\",ご利用申込書!P9)","v":""}]
["返却時刻",null,null,null,null,null,"：",null,null,null,null,null,null,null,"筆洗い容器（90）",null,null,null,"ロマンの広場"]
[null,null,null,null,null,null,null,null,null,null,null,null,null,null,"平筆（小・中・大） (各80)",null,null,null,"芝生広場"]
[null,null,null,null,null,{"$f":"IF(B10=\"\",\"\",B10)","v":""},null,null,null,null,null,null,"memo",null,"彩色筆（小・中・大）(各80)",null,null,null,"小野浦海岸"]
[null,null,null,null,null,null,null,null,null,null,null,null,null,null,"ニスはけ（中・大） (各50)"]
["受け渡し時刻",null,null,null,null,null,"：",null,null,null,null,null,null,null,"切り出し刀（一刀彫用）（360）",null,null,null,"第１研修室"]
["返却時刻",null,null,null,null,null,"：",null,null,null,null,null,null,null,"竹のこ（竹細工用）（60）",null,null,null,"第２研修室"]
[null,null,null,null,null,null,null,null,null,null,null,null,null,null,"糸のこ（杉焼き板用）（30）",null,null,null,"第３研修室"]
[null,null,null,null,null,{"$f":"IF(B15=\"\",\"\",B15)","v":""},null,null,null,null,null,null,"memo",null,"切り出しナイフ（竹細工用）（200）",null,null,null,"第４研修室"]
[null,null,null,null,null,null,null,null,null,null,null,null,null,null,"かなづち（100）",null,null,null,"第５研修室"]
["受け渡し時刻",null,null,null,null,null,"：",null,null,null,null,null,null,null,"三つ目きり（100）",null,null,null,"第６研修室"]
["返却時刻",null,null,null,null,null,"：",null,null,null,null,null,null,null,"四つ目きり（100）",null,null,null,"第７研修室"]
[null,null,null,null,null,null,null,null,null,null,null,null,null,null,"竹割りナタ（25）",null,null,null,"第８研修室"]
[null,null,null,null,null,{"$f":"IF(B20=\"\",\"\",B20)","v":""},null,null,null,null,null,null,"memo",null,"ペンチ（80）",null,null,null,"第９研修室"]
[null,null,null,null,null,null,null,null,null,null,null,null,null,null,"ラジオペンチ（80）",null,null,null,"第10研修室"]
["受け渡し時刻",null,null,null,null,null,"：",null,null,null,null,null,null,null,"グルーガン（材料は持参）（50）",null,null,null,"観測ホール"]
["返却時刻",null,null,null,null,null,"：",null,null,null,null,null,null,null,"焼き板バーナー（ボンベは持参）(2)"]
[]
[null,null,null,null,null,{"$f":"IF(B25=\"\",\"\",B25)","v":""},null,null,null,null,null,null,"memo",null,"●放送機器一式"]
[null,null,null,null,null,null,null,null,null,null,null,null,null,null,"放送機器一式(体育館)"]
["受け渡し時刻",null,null,null,null,null,"：",null,null,null,null,null,null,null,"放送機器一式(講堂)"]
["返却時刻",null,null,null,null,null,"："]
[null,null,null,null,null,null,null,null,null,null,null,null,null,null,"●レンタル用視聴覚備品"]
[null,null,null,null,null,null,null,null,null,null,null,null,null,null,"モニター＆DVDセット （２）"]
[null,null,null,null,null,null,null,null,null,null,null,null,null,null,"液晶プロジェクター（HDMI対応）（２）"]
[null,null,null,null,null,null,null,null,null,null,null,null,null,null,"液晶プロジェクター（HDMI非対応）（２）"]
[null,null,null,null,null,null,null,null,null,null,null,null,null,null,"ＤＶＤプレイヤー（２）"]
[null,null,null,null,null,null,null,null,null,null,null,null,null,null,"スクリーン（可動式）（３）"]
[null,null,null,null,null,null,null,null,null,null,null,null,null,null,"ワイヤレスマイク・アンプ一式（３）"]
[null,null,null,null,null,null,null,null,null,null,null,null,null,null,"ＣＤラジカセ（３）"]
[null,null,null,null,null,null,null,null,null,null,null,null,null,null,"延長コード（３）"]
[]
[null,null,null,null,null,null,null,null,null,null,null,null,null,null,"●観測用品"]
[null,null,null,null,null,null,null,null,null,null,null,null,null,null,"天体望遠鏡（７）"]
[null,null,null,null,null,null,null,null,null,null,null,null,null,null,"双眼鏡（40）"]
[null,null,null,null,null,null,null,null,null,null,null,null,null,null,"星座早見盤（４５）"]
[]
[null,null,null,null,null,null,null,null,null,null,null,null,null,null,"●図鑑・教材"]
[null,null,null,null,null,null,null,null,null,null,null,null,null,null,"植物図鑑（24）"]
[null,null,null,null,null,null,null,null,null,null,null,null,null,null,"昆虫図鑑（50）"]
[null,null,null,null,null,null,null,null,null,null,null,null,null,null,"魚貝図鑑（50）"]
[null,null,null,null,null,null,null,null,null,null,null,null,null,null,"山野の野鳥図鑑 （47）"]
[null,null,null,null,null,null,null,null,null,null,null,null,null,null,"水辺の野鳥図鑑（48）"]
[]
[null,null,null,null,null,null,null,null,null,null,null,null,null,null,"●ファイヤー・キャンドル用品"]
[null,null,null,null,null,null,null,null,null,null,null,null,null,null,"燭台（ビニールシート付き）【講堂】（3）"]
[null,null,null,null,null,null,null,null,null,null,null,null,null,null,"燭台（ビニールシート付き）【体育館】（1）"]
[null,null,null,null,null,null,null,null,null,null,null,null,null,null,"火の神の衣装（大人用3・子供用3）"]
[null,null,null,null,null,null,null,null,null,null,null,null,null,null,"火の神のつえ （３）"]
[null,null,null,null,null,null,null,null,null,null,null,null,null,null,"火の神の巻きもの（3）"]
[]
[null,null,null,null,null,null,null,null,null,null,null,null,null,null,"●体育館スポーツ用具"]
[null,null,null,null,null,null,null,null,null,null,null,null,null,null,"バレーボール支柱・ネット（2）"]
[null,null,null,null,null,null,null,null,null,null,null,null,null,null,"バレーボール（30）"]
[null,null,null,null,null,null,null,null,null,null,null,null,null,null,"バスケットボール（20）"]
[null,null,null,null,null,null,null,null,null,null,null,null,null,null,"手動式タイマー（2）"]
[]
[null,null,null,null,null,null,null,null,null,null,null,null,null,null,"バドミントン支柱・ネット（6）"]
[null,null,null,null,null,null,null,null,null,null,null,null,null,null,"バドミントンラケット（36）"]
[null,null,null,null,null,null,null,null,null,null,null,null,null,null,-22]
[]
[null,null,null,null,null,null,null,null,null,null,null,null,null,null,"硬式テニス支柱・ネット（１）"]
[null,null,null,null,null,null,null,null,null,null,null,null,null,null,"ソフトバレーボール（7）"]
[null,null,null,null,null,null,null,null,null,null,null,null,null,null,"インディアカ羽根（30）"]
[]
[null,null,null,null,null,null,null,null,null,null,null,null,null,null,"綱引き（２０ｍ）（2）"]
[null,null,null,null,null,null,null,null,null,null,null,null,null,null,"縄跳び(一人用)（170）"]
[null,null,null,null,null,null,null,null,null,null,null,null,null,null,"長縄（１０ｍ）（10）"]
[null,null,null,null,null,null,null,null,null,null,null,null,null,null,"長縄（２０ｍ）（５）"]
[]
[null,null,null,null,null,null,null,null,null,null,null,null,null,null,"ドッジボール（17）"]
[null,null,null,null,null,null,null,null,null,null,null,null,null,null,"レクリエーショナルディスクナインターゲット（１）"]
[null,null,null,null,null,null,null,null,null,null,null,null,null,null,"ナインターゲット用ディスク（10）"]
[null,null,null,null,null,null,null,null,null,null,null,null,null,null,"タスポニーボール支柱・ネット（3）"]
[null,null,null,null,null,null,null,null,null,null,null,null,null,null,"タスポニーボール（9）"]
[null,null,null,null,null,null,null,null,null,null,null,null,null,null,"バウンドテニスラケット（12）"]
[null,null,null,null,null,null,null,null,null,null,null,null,null,null,"バウンドテニスボール（10）"]
[null,null,null,null,null,null,null,null,null,null,null,null,null,null,"バンブーダンスセット(６)"]
[null,null,null,null,null,null,null,null,null,null,null,null,null,null,"キャッチザスティックセット（７）"]
[null,null,null,null,null,null,null,null,null,null,null,null,null,null,"輪投げセット（６）"]
[]
[null,null,null,null,null,null,null,null,null,null,null,null,null,null,"マット（８）"]
[null,null,null,null,null,null,null,null,null,null,null,null,null,null,"セーフティマット（２）"]
[null,null,null,null,null,null,null,null,null,null,null,null,null,null,"得点板（６）"]
[null,null,null,null,null,null,null,null,null,null,null,null,null,null,"ドッチビー（１２）"]
[null,null,null,null,null,null,null,null,null,null,null,null,null,null,"フライングディスク（１４）"]
[]
[null,null,null,null,null,null,null,null,null,null,null,null,null,null,"カラーコーン大（２４）"]
[null,null,null,null,null,null,null,null,null,null,null,null,null,null,"カラーコーン小（５０）"]
[]
[null,null,null,null,null,null,null,null,null,null,null,null,null,null,"●楽器"]
[null,null,null,null,null,null,null,null,null,null,null,null,null,null,"エレクトーン（第１０研修室）（１）"]
[null,null,null,null,null,null,null,null,null,null,null,null,null,null,"ピアノ（講堂）（１）"]
[null,null,null,null,null,null,null,null,null,null,null,null,null,null,"ギター（第１０研修室）（５）"]
[]
[null,null,null,null,null,null,null,null,null,null,null,null,null,null,"●その他教具"]
[null,null,null,null,null,null,null,null,null,null,null,null,null,null,"ホワイトボード（10）"]
[]
[]
[null,null,null,null,null,null,null,null,null,null,null,null,null,null,"●チャレンジ広場用"]
[null,null,null,null,null,null,null,null,null,null,null,null,null,null,"ソフトボールベース（１）"]
[null,null,null,null,null,null,null,null,null,null,null,null,null,null,"ソフトボール(2号3号）（15）"]
[null,null,null,null,null,null,null,null,null,null,null,null,null,null,"スコアーボード（１）"]
[null,null,null,null,null,null,null,null,null,null,null,null,null,null,"綱引き５０ｍ（２）"]
[null,null,null,null,null,null,null,null,null,null,null,null,null,null,"ゲートボールセット（２）"]
[]
[null,null,null,null,null,null,null,null,null,null,null,null,null,null,"●マリン倉庫"]
[null,null,null,null,null,null,null,null,null,null,null,null,null,null,"スコップ（５０）"]
[null,null,null,null,null,null,null,null,null,null,null,null,null,null,"移植ゴテ（100）"]
[null,null,null,null,null,null,null,null,null,null,null,null,null,null,"ジョロ（80）"]
[null,null,null,null,null,null,null,null,null,null,null,null,null,null,"バケツ（60）"]
[null,null,null,null,null,null,null,null,null,null,null,null,null,null,"たらい（１0）"]
[null,null,null,null,null,null,null,null,null,null,null,null,null,null,"たも（150）"]
[null,null,null,null,null,null,null,null,null,null,null,null,null,null,"救命浮輪（11）"]
[null,null,null,null,null,null,null,null,null,null,null,null,null,null,"浮き球（7）"]
[null,null,null,null,null,null,null,null,null,null,null,null,null,null,"救命胴衣（大人用）（110）"]
[null,null,null,null,null,null,null,null,null,null,null,null,null,null,"救命胴衣（子供用）（100）"]
[null,null,null,null,null,null,null,null,null,null,null,null,null,null,"リアカー（２）"]
[]
[null,null,null,null,null,null,null,null,null,null,null,null,null,null,"●ロマン広場管理棟"]
[null,null,null,null,null,null,null,null,null,null,null,null,null,null,"サッカーゴール・ネット(1組)"]
[null,null,null,null,null,null,null,null,null,null,null,null,null,null,"サッカーボール（９）"]
[null,null,null,null,null,null,null,null,null,null,null,null,null,null,"バレーボール支柱・ネット（２）"]
[null,null,null,null,null,null,null,null,null,null,null,null,null,null,"バレーボール（８）"]
[null,null,null,null,null,null,null,null,null,null,null,null,null,null,"ディスクゴルフゴール（１０）"]
[null,null,null,null,null,null,null,null,null,null,null,null,null,null,"フライングディスク（70）"]
[null,null,null,null,null,null,null,null,null,null,null,null,null,null,"ターゲットバードゴルフTBG（４０）"]
[null,null,null,null,null,null,null,null,null,null,null,null,null,null,"TBGボール（４０）"]
[null,null,null,null,null,null,null,null,null,null,null,null,null,null,"TBGスイングマット（２０）"]
[null,null,null,null,null,null,null,null,null,null,null,null,null,null,"TBGホール（18）"]
[null,null,null,null,null,null,null,null,null,null,null,null,null,null,"一人用縄跳び（110）"]
[null,null,null,null,null,null,null,null,null,null,null,null,null,null,"長縄10ｍ（５）"]
[null,null,null,null,null,null,null,null,null,null,null,null,null,null,"長縄25ｍ（４）"]
[null,null,null,null,null,null,null,null,null,null,null,null,null,null,"グラウンドゴルフスティック（18）"]
[null,null,null,null,null,null,null,null,null,null,null,null,null,null,"グラウンドゴルフボール（26）"]
[null,null,null,null,null,null,null,null,null,null,null,null,null,null,"グラウンドゴルフホールポスト（10）"]
[null,null,null,null,null,null,null,null,null,null,null,null,null,null,"ペタンクボール(16)"]
[null,null,null,null,null,null,null,null,null,null,null,null,null,null,"●事務室倉庫"]
[null,null,null,null,null,null,null,null,null,null,null,null,null,null,"ゼッケン（No.１～２００）"]
[null,null,null,null,null,null,null,null,null,null,null,null,null,null,"タスキ（４色　各５０本）"]
[null,null,null,null,null,null,null,null,null,null,null,null,null,null,"オリエンテーリングポスト(20)"]
[null,null,null,null,null,null,null,null,null,null,null,null,null,null,"コンパス（250）"]
[]
[null,null,null,null,null,null,null,null,null,null,null,null,null,null,"テニス支柱・ネット（４）"]

{"sheet":"プログラム（スケジュール）","index":4,"n_rows":71,"n_cols":18,"rows_kept":71,"cut":false,"hidden":false,"merged":[[3,7,4,7],[4,12,4,13],[70,7,71,7],[70,8,71,13],[0,8,0,9],[0,10,0,11],[0,12,0,13],[1,12,1,13],[34,12,34,13],[20,12,20,13],[13,12,13,13],[70,0,71,0],[70,1,71,6],[0,1,0,2],[3,0,4,0],[0,3,0,4],[0,5,0,6],[1,5,1,6]]}
["団体名　",{"$f":"IF(ご利用申込書!C2=\"\",\"\",ご利用申込書!C2)","v":""},null,{"$f":"IF(ご利用申込書!C7=\"\",\"利用担当者：\",\"利用担当者：　\"&ご利用申込書!C7)","v":"利用担当者："},null,{"$f":"IF(ご利用申込書!M7=\"担当者連絡先（携帯）：\",\"\",\"担当者連絡先（携帯）：　\"&ご利用申込書!M7)","v":"担当者連絡先（携帯）：　"},null,"団体名　",{"$f":"IF(B1=\"\",\"\",B1)","v":""},null,{"$f":"D1","v":"利用担当者："},null,{"$f":"F1","v":"担当者連絡先（携帯）：　"}]
["利用\n日時",{"$f":"IF(ご利用申込書!D9=\"\",\" \",ご利用申込書!D9)","v":" "},{"$f":"IF(ご利用申込書!C10=\"\",\"\",ご利用申込書!C10)","v":""},{"$f":"IF(ご利用申込書!O9<>\"\",ご利用申込書!P9,IF(ご利用申込書!L9<>\"\",ご利用申込書!M9,IF(ご利用申込書!I9<>\"\",ご利用申込書!J9,IF(ご利用申込書!F9<>\"\",ご利用申込書!G9,IF(ご利用申込書!C9<>\"\",ご利用申込書!D9,\"\")))))","v":"00:00:00"},{"$f":"IF(ご利用申込書!O11<>\"\",ご利用申込書!O11,IF(ご利用申込書!L11<>\"\",ご利用申込書!L11,IF(ご利用申込書!I11<>\"\",ご利用申込書!I11,IF(ご利用申込書!F11<>\"\",ご利用申込書!F11,IF(ご利用申込書!C11<>\"\",ご利用申込書!C11,\"\")))))","v":""},{"$f":"IF(ご利用申込書!M3=\"連絡先（代表）：\",\"\",\"連絡先（代表）：　\"&ご利用申込書!M3)","v":"連絡先（代表）：　"},null,"利用\n日時",{"$f":"IF(B2=\"\",\"\",B2)","v":" "},{"$f":"IF(C2=\"\",\"\",C2)","v":""},"00:00:00","",{"$f":"F2","v":"連絡先（代表）：　"}]
["宿泊\n人数",{"$f":"IF(ご利用申込書!C57=\"\",\"\",ご利用申込書!C57)","v":""},"人","入所時所長挨拶",null,"退所時所長挨拶",null,"宿泊\n人数",{"$f":"IF(B3=\"\",\"\",B3)","v":""},"人","入所時所長挨拶",{"$f":"IF(E3=\"\",\"\",E3)","v":""},"退所時所長挨拶",{"$f":"IF(G3=\"\",\"\",G3)","v":""}]
[null,{"$f":"IF(ご利用申込書!C9=\"\",\"\",ご利用申込書!C9)","v":"宿泊"},{"$f":"IF(ご利用申込書!D9=\"\",\"\",ご利用申込書!D9)","v":""},{"$f":"IF(ご利用申込書!F9=\"\",\"\",ご利用申込書!F9)","v":""},{"$f":"IF(ご利用申込書!G9=\"\",\"\",ご利用申込書!G9)","v":""},{"$f":"IF(ご利用申込書!I9=\"\",\"\",ご利用申込書!I9)","v":""},{"$f":"IF(ご利用申込書!J9=\"\",\"\",ご利用申込書!J9)","v":""},null,{"$f":"IF(ご利用申込書!L9=\"\",\"\",ご利用申込書!L9)","v":""},{"$f":"IF(ご利用申込書!M9=\"\",\"\",ご利用申込書!M9)","v":""},{"$f":"IF(ご利用申込書!O9=\"\",\"\",ご利用申込書!O9)","v":""},{"$f":"IF(ご利用申込書!P9=\"\",\"\",ご利用申込書!P9)","v":""},"　日目","月　　日",null,null,null,"要"]
[null,null,null,null,null,null,null,null,null,null,null,null,"以下は記入例です。",null,null,null,null,"不要"]
["時刻","活動内容","場所","活動内容","場所","活動内容","場所","時刻","活動内容","場所","活動内容","場所","活動内容","場所"]
["06:30:00",null,null,"630起床",null,null,null,"06:30:00",null,null,null,null,"630起床"]
[]
["07:00:00",null,null,"700朝の集い","集いの広場(体育館)",null,null,"07:00:00",null,null,null,null,"700朝の集い","集いの広場"]
[null,null,null,null,null,null,null,null,null,null,null,null,null,"（体育館）"]
["07:30:00",null,null,null,null,null,null,"07:30:00",null,null,null,null,"720-800朝食","食堂"]
[]
["08:00:00",null,null,null,null,null,null,"08:00:00",null,null,null,null,"800荷物整理","宿泊室"]
[null,null,null,null,null,null,null,null,null,null,null,null,"※時刻の後に活動内容を簡潔に"]
["08:30:00",null,null,null,null,null,null,"08:30:00"]
[]
["09:00:00",null,null,null,null,null,null,"09:00:00"]
[null,null,null,null,null,null,null,null,null,null,null,null,"910海水浴オリ","集いの広場"]
["09:30:00",null,null,null,null,null,null,"09:30:00",null,null,null,null,"930海水浴","海岸"]
[null,null,null,null,null,null,null,null,null,null,null,null,"（合唱コンクール）","（講堂）"]
["10:00:00",null,null,null,null,null,null,"10:00:00",null,null,null,null,"※雨天時は（　）で記入"]
[]
["10:30:00",null,null,null,null,null,null,"10:30:00"]
[]
["11:00:00",null,null,null,null,null,null,"11:00:00",null,null,null,null,"1100海水浴終了"]
[]
["11:30:00",null,null,null,null,null,null,"11:30:00"]
[]
["12:00:00",null,null,null,null,null,null,"12:00:00",null,null,null,null,"1200注文弁当","ふれあい炊飯場"]
[]
["12:30:00",null,null,null,null,null,null,"12:30:00"]
[]
["13:00:00",null,null,null,null,null,null,"13:00:00",null,null,null,null,"1300学級活動","①②⑨⑩研修室"]
[]
["13:30:00",null,null,null,null,null,null,"13:30:00",null,null,null,null,"※研修室は○番号で記入"]
[]
["14:00:00",null,null,null,null,null,null,"14:00:00"]
[]
["14:30:00",null,null,null,null,null,null,"14:30:00"]
[]
["15:00:00",null,null,null,null,null,null,"15:00:00",null,null,null,null,"1500野外炊飯","ふれあい炊飯場"]
[]
["15:30:00",null,null,null,null,null,null,"15:30:00"]
[]
["16:00:00",null,null,null,null,null,null,"16:00:00"]
[]
["16:30:00","1640代表者会議","事務室",null,null,null,null,"16:30:00"]
[]
["17:00:00",null,null,null,null,null,null,"17:00:00"]
[]
["17:30:00",null,null,null,null,null,null,"17:30:00"]
[]
["18:00:00",null,null,null,null,null,null,"18:00:00",null,null,null,null,"1800-1840入浴"]
[]
["18:30:00",null,null,null,null,null,null,"18:30:00"]
[]
["19:00:00",null,null,null,null,null,null,"19:00:00"]
[]
["19:30:00",null,null,null,null,null,null,"19:30:00",null,null,null,null,"1930-2100ふれあい活動","体育館"]
[]
["20:00:00",null,null,null,null,null,null,"20:00:00"]
[]
["20:30:00",null,null,null,null,null,null,"20:30:00"]
[]
["21:00:00",null,null,null,null,null,null,"21:00:00"]
[]
["21:30:00","2130就寝準備",null,null,null,null,null,"21:30:00",null,null,null,null,"2130就寝準備"]
[]
["22:00:00","2200消灯就寝",null,null,null,null,null,"22:00:00",null,null,null,null,"2200消灯就寝"]
[]
[null,"※　余裕をもったご計画をお願いします。\n※　雨天案は（　　　　）を使ってご記入ください。\n※　食事・入浴時間等は約２か月前に原案をお送りします。所員と連絡を取り合い内容や時間を決定します。\n",null,null,null,null,null,null,"※　余裕をもったご計画をお願いします。\n※　雨天案は（　　　　）を使ってご記入ください。\n※　食事・入浴時間等は約２か月前に原案をお送りします。所員と連絡を取り合い内容や時間を決定します。\n"]

{"sheet":"宿泊部屋配当表","index":5,"n_rows":65,"n_cols":43,"rows_kept":65,"cut":false,"hidden":false,"merged":[[15,7,15,8],[27,21,27,22],[27,23,27,24],[19,21,19,22],[19,23,19,24],[18,16,18,17],[25,10,27,11],[17,10,19,11],[21,16,21,17],[21,10,21,11],[21,12,21,13],[21,14,21,15],[23,30,23,31],[26,19,26,20],[26,21,26,24],[18,21,18,24],[18,19,18,20],[18,28,18,29],[18,30,18,31],[21,19,21,20],[21,21,21,22],[21,23,21,24],[21,25,21,26],[1,30,3,31],[1,32,3,33],[0,28,0,29],[0,30,0,31],[0,32,0,33],[0,12,0,13],[1,10,3,11],[1,12,3,13],[1,22,3,24],[1,28,3,29],[29,25,29,26],[26,28,26,29],[26,30,26,31],[26,32,26,33],[26,34,26,35],[25,25,27,26],[10,32,10,33],[10,34,10,35],[7,30,7,31],[18,1,18,2],[18,3,18,4],[18,5,18,6],[18,7,18,8],[18,32,18,33],[18,34,18,35],[9,27,9,35],[7,7,7,8],[15,30,15,31],[9,10,11,11],[17,25,19,26],[9,25,11,26],[10,21,10,24],[7,0,14,0],[0,0,3,9],[0,14,0,21],[0,25,0,27],[1,14,3,21],[1,25,3,27],[10,1,10,2],[10,3,10,4],[10,5,10,6],[10,7,10,8],[4,16,4,21],[10,19,10,20],[10,16,10,17],[11,21,11,22],[11,23,11,24],[0,10,0,11],[29,14,29,15],[29,16,29,17],[29,19,29,20],[23,0,30,0],[26,1,26,2],[26,3,26,4],[26,5,26,6],[26,7,26,8],[26,16,26,17],[23,7,23,8],[29,21,29,22],[29,23,29,24],[5,5,5,30],[15,0,22,0],[13,10,13,11],[13,12,13,13],[13,14,13,15],[13,16,13,17],[13,19,13,20],[13,21,13,22],[13,23,13,24],[13,25,13,26],[10,28,10,29],[10,30,10,31],[29,10,29,11],[29,12,29,13]]}
["美浜少年自然の家\n宿泊部屋男・女別割当表",null,null,null,null,null,null,null,null,null,"入所日",null,"退所日",null,"団体名",null,null,null,null,null,null,null,null,"宿泊人数",null,"割当部屋数",null,null,"部屋数",null,"男性部屋",null,"女性部屋"]
[null,null,null,null,null,null,null,null,null,null,{"$f":"IF(ご利用申込書!D9=\"\",\"\",ご利用申込書!D9)","v":""},null,{"$f":"IF(ご利用申込書!P9<>\"\",ご利用申込書!P9,IF(ご利用申込書!M9<>\"\",ご利用申込書!M9,IF(ご利用申込書!J9<>\"\",ご利用申込書!J9,IF(ご利用申込書!G9<>\"\",ご利用申込書!G9,\"\"))))","v":""},null,{"$f":"IF(ご利用申込書!C2=\"\",\"\",ご利用申込書!C2)","v":""},null,null,null,null,null,null,null,{"$f":"ご利用申込書!C57","v":""},null,null,null,null,null,{"$f":"SUM(AE2:AG4)","v":0},null,{"$f":"IF(O2=\"\",\"\",COUNTIF(AN2:AN64,AL2))","v":""},null,{"$f":"IF(O2=\"\",\"\",COUNTIF(AN2:AN64,AL3))","v":""},null,null,null,null,"男",301,{"$f":"$AI28","v":0},{"$f":"AJ28","v":0},10,11]
[null,null,null,null,null,null,null,null,null,null,null,null,null,null,null,null,null,null,null,null,null,null,null,null,null,null,null,null,null,null,null,null,null,null,null,null,null,"女",302,{"$f":"$AG28","v":0},{"$f":"AH28","v":0},10,11]
[null,null,null,null,null,null,null,null,null,null,null,null,null,null,null,null,null,null,null,null,null,null,null,null,null,null,null,null,null,null,null,null,null,null,null,null,null,null,303,{"$f":"$AE28","v":0},{"$f":"AF28","v":0},10,11]
[null,null,null,null,null,null,null,null,null,null,null,null,null,null,null,null,null,null,null,null,null,null,null,null,null,null,null,null,null,null,null,null,null,null,null,null,null,null,304,{"$f":"$AC28","v":0},{"$f":"AD28","v":0},10,11]
[null,null,null,null,null,"この表は、ご提出の必要はありませんが、ご自由にご利用ください。",null,null,null,null,null,null,null,null,null,null,null,null,null,null,null,null,null,null,null,null,null,null,null,null,null,null,null,null,null,null,null,null,321,{"$f":"AE25","v":0},{"$f":"AF25","v":0},2,2]
[null,null,null,null,null,null,null,null,null,null,null,null,null,null,null,null,null,null,null,null,null,null,null,null,null,null,null,null,null,null,null,null,null,null,null,null,null,null,305,{"$f":"Z31","v":0},{"$f":"AA31","v":0},10,11]
["５\nＦ",null,null,null,null,null,null,523,null,null,null,null,null,null,null,null,null,null,null,null,null,null,null,null,null,null,null,null,null,null,521,null,null,null,null,null,null,null,306,{"$f":"X31","v":0},{"$f":"Y31","v":0},10,11]
[null,null,null,null,null,null,null,null,null,null,null,null,null,null,null,null,null,null,null,null,null,null,null,null,null,null,null,null,null,null,null,null,null,null,null,null,null,null,307,{"$f":"V31","v":0},{"$f":"W31","v":0},10,11]
[null,null,null,null,null,null,null,null,null,null,"トイレ",null,null,null,null,null,null,null,null,null,null,null,null,null,null,"トイレ",null,null,null,null,null,null,null,null,null,null,null,null,308,{"$f":"T31","v":0},{"$f":"U31","v":0},10,11]
[null,516,null,515,null,514,null,513,null,null,null,null,null,null,null,null,522,null,null,"本部",null,"ミーティング",null,null,null,null,null,null,504,null,503,null,502,null,501,null,null,null,"本部",{"$f":"T28","v":0},{"$f":"U28","v":0},2,2]
[null,null,null,null,null,null,null,null,null,null,null,null,null,null,null,null,null,null,null,null,null,null,null,null,null,null,null,null,null,null,null,null,null,null,null,null,null,null,"Met",{"$f":"V28","v":0},{"$f":"X28","v":0},10,20]
[null,null,null,null,null,null,null,null,null,null,null,null,null,null,null,null,null,null,null,null,null,null,null,null,null,null,null,null,null,null,null,null,null,null,null,null,null,null,322,{"$f":"Q28","v":0},{"$f":"R28","v":0},2,2]
[null,null,null,null,null,null,null,null,null,null,512,null,511,null,510,null,509,null,null,508,null,507,null,506,null,505,null,null,null,null,null,null,null,null,null,null,null,null,309,{"$f":"Q31","v":0},{"$f":"R31","v":0},10,11]
[null,null,null,null,null,null,null,null,null,null,null,null,null,null,null,null,null,null,null,null,null,null,null,null,null,null,null,null,null,null,null,null,null,null,null,null,null,null,310,{"$f":"O31","v":0},{"$f":"P31","v":0},10,11]
["４\nＦ",null,null,null,null,null,null,423,null,null,null,null,null,null,null,null,null,null,null,null,null,null,null,null,null,null,null,null,null,null,421,null,null,null,null,null,null,null,311,{"$f":"M31","v":0},{"$f":"N31","v":0},10,11]
[null,null,null,null,null,null,null,null,null,null,null,null,null,null,null,null,null,null,null,null,null,null,null,null,null,null,null,null,null,null,null,null,null,null,null,null,null,null,312,{"$f":"K31","v":0},{"$f":"L31","v":0},10,11]
[null,null,null,null,null,null,null,null,null,null,"トイレ",null,null,null,null,null,null,null,null,null,null,null,null,null,null,"トイレ",null,null,null,null,null,null,null,null,null,null,null,null,313,{"$f":"H28","v":0},{"$f":"I28","v":0},10,11]
[null,416,null,415,null,414,null,413,null,null,null,null,null,null,null,null,422,null,null,"本部",null,"ミーティング",null,null,null,null,null,null,404,null,403,null,402,null,401,null,null,null,314,{"$f":"F28","v":0},{"$f":"G28","v":0},10,11]
[null,null,null,null,null,null,null,null,null,null,null,null,null,null,null,null,null,null,null,null,null,null,null,null,null,null,null,null,null,null,null,null,null,null,null,null,null,null,315,{"$f":"D28","v":0},{"$f":"E28","v":0},10,11]
[null,null,null,null,null,null,null,null,null,null,null,null,null,null,null,null,null,null,null,null,null,null,null,null,null,null,null,null,null,null,null,null,null,null,null,null,null,null,316,{"$f":"B28","v":0},{"$f":"C28","v":0},10,11]
[null,null,null,null,null,null,null,null,null,null,412,null,411,null,410,null,409,null,null,408,null,407,null,406,null,405,null,null,null,null,null,null,null,null,null,null,null,null,323,{"$f":"H25","v":0},{"$f":"I25","v":0},2,2]
[null,null,null,null,null,null,null,null,null,null,null,null,null,null,null,null,null,null,null,null,null,null,null,null,null,null,null,null,null,null,null,null,null,null,null,null,null,null,401,{"$f":"AI20","v":0},{"$f":"AJ20","v":0},10,11]
["３\nＦ",null,null,null,null,null,null,323,null,null,null,null,null,null,null,null,null,null,null,null,null,null,null,null,null,null,null,null,null,null,321,null,null,null,null,null,null,null,402,{"$f":"AG20","v":0},{"$f":"AH20","v":0},10,11]
[null,null,null,null,null,null,null,null,null,null,null,null,null,null,null,null,null,null,null,null,null,null,null,null,null,null,null,null,null,null,null,null,null,null,null,null,null,null,403,{"$f":"AE20","v":0},{"$f":"AF20","v":0},10,11]
[null,null,null,null,null,null,null,null,null,null,"トイレ",null,null,null,null,null,null,null,null,null,null,null,null,null,null,"トイレ",null,null,null,null,null,null,null,null,null,null,null,null,404,{"$f":"AC20","v":0},{"$f":"AD20","v":0},10,11]
[null,316,null,315,null,314,null,313,null,null,null,null,null,null,null,null,322,null,null,"本部",null,"ミーティング",null,null,null,null,null,null,304,null,303,null,302,null,301,null,null,null,421,{"$f":"AE17","v":0},{"$f":"AF17","v":0},2,2]
[null,null,null,null,null,null,null,null,null,null,null,null,null,null,null,null,null,null,null,null,null,null,null,null,null,null,null,null,null,null,null,null,null,null,null,null,null,null,405,{"$f":"Z23","v":0},{"$f":"AA23","v":0},10,11]
[null,null,null,null,null,null,null,null,null,null,null,null,null,null,null,null,null,null,null,null,null,null,null,null,null,null,null,null,null,null,null,null,null,null,null,null,null,null,406,{"$f":"X23","v":0},{"$f":"Y23","v":0},10,11]
[null,null,null,null,null,null,null,null,null,null,312,null,311,null,310,null,309,null,null,308,null,307,null,306,null,305,null,null,null,null,null,null,null,null,null,null,null,null,407,{"$f":"V23","v":0},{"$f":"W23","v":0},10,11]
[null,null,null,null,null,null,null,null,null,null,null,null,null,null,null,null,null,null,null,null,null,null,null,null,null,null,null,null,null,null,null,null,null,null,null,null,null,null,408,{"$f":"T23","v":0},{"$f":"U23","v":0},10,11]
[null,null,null,null,null,null,null,null,null,null,null,null,null,null,null,null,null,null,null,null,null,null,null,null,null,null,null,null,null,null,null,null,null,null,null,null,null,null,"本部",{"$f":"T20","v":0},{"$f":"U20","v":0},2,2]
[null,null,null,null,null,null,null,null,null,null,null,null,null,null,null,null,null,null,null,null,null,null,null,null,null,null,null,null,null,null,null,null,null,null,null,null,null,null,"Met",{"$f":"V20","v":0},{"$f":"X20","v":0},10,20]
[null,null,null,null,null,null,null,null,null,null,null,null,null,null,null,null,null,null,null,null,null,null,null,null,null,null,null,null,null,null,null,null,null,null,null,null,null,null,422,{"$f":"Q20","v":0},{"$f":"R20","v":0},2,2]
[null,null,null,null,null,null,null,null,null,null,null,null,null,null,null,null,null,null,null,null,null,null,null,null,null,null,null,null,null,null,null,null,null,null,null,null,null,null,409,{"$f":"Q23","v":0},{"$f":"R23","v":0},10,11]
[null,null,null,null,null,null,null,null,null,null,null,null,null,null,null,null,null,null,null,null,null,null,null,null,null,null,null,null,null,null,null,null,null,null,null,null,null,null,410,{"$f":"O23","v":0},{"$f":"P23","v":0},10,11]
[null,null,null,null,null,null,null,null,null,null,null,null,null,null,null,null,null,null,null,null,null,null,null,null,null,null,null,null,null,null,null,null,null,null,null,null,null,null,411,{"$f":"M23","v":0},{"$f":"N23","v":0},10,11]
[null,null,null,null,null,null,null,null,null,null,null,null,null,null,null,null,null,null,null,null,null,null,null,null,null,null,null,null,null,null,null,null,null,null,null,null,null,null,412,{"$f":"K23","v":0},{"$f":"L23","v":0},10,11]
[null,null,null,null,null,null,null,null,null,null,null,null,null,null,null,null,null,null,null,null,null,null,null,null,null,null,null,null,null,null,null,null,null,null,null,null,null,null,413,{"$f":"H20","v":0},{"$f":"I20","v":0},10,11]
[null,null,null,null,null,null,null,null,null,null,null,null,null,null,null,null,null,null,null,null,null,null,null,null,null,null,null,null,null,null,null,null,null,null,null,null,null,null,414,{"$f":"F20","v":0},{"$f":"G20","v":0},10,11]
[null,null,null,null,null,null,null,null,null,null,null,null,null,null,null,null,null,null,null,null,null,null,null,null,null,null,null,null,null,null,null,null,null,null,null,null,null,null,415,{"$f":"D20","v":0},{"$f":"E20","v":0},10,11]
[null,null,null,null,null,null,null,null,null,null,null,null,null,null,null,null,null,null,null,null,null,null,null,null,null,null,null,null,null,null,null,null,null,null,null,null,null,null,416,{"$f":"B20","v":0},{"$f":"C20","v":0},10,11]
[null,null,null,null,null,null,null,null,null,null,null,null,null,null,null,null,null,null,null,null,null,null,null,null,null,null,null,null,null,null,null,null,null,null,null,null,null,null,423,{"$f":"H17","v":0},{"$f":"I17","v":0},2,2]
[null,null,null,null,null,null,null,null,null,null,null,null,null,null,null,null,null,null,null,null,null,null,null,null,null,null,null,null,null,null,null,null,null,null,null,null,null,null,501,{"$f":"AI12","v":0},{"$f":"AJ12","v":0},10,11]
[null,null,null,null,null,null,null,null,null,null,null,null,null,null,null,null,null,null,null,null,null,null,null,null,null,null,null,null,null,null,null,null,null,null,null,null,null,null,502,{"$f":"AG12","v":0},{"$f":"AH12","v":0},10,11]
[null,null,null,null,null,null,null,null,null,null,null,null,null,null,null,null,null,null,null,null,null,null,null,null,null,null,null,null,null,null,null,null,null,null,null,null,null,null,503,{"$f":"AE12","v":0},{"$f":"AF12","v":0},10,11]
[null,null,null,null,null,null,null,null,null,null,null,null,null,null,null,null,null,null,null,null,null,null,null,null,null,null,null,null,null,null,null,null,null,null,null,null,null,null,504,{"$f":"AC12","v":0},{"$f":"AD12","v":0},10,11]
[null,null,null,null,null,null,null,null,null,null,null,null,null,null,null,null,null,null,null,null,null,null,null,null,null,null,null,null,null,null,null,null,null,null,null,null,null,null,521,{"$f":"AE9","v":0},{"$f":"AF9","v":0},2,2]
[null,null,null,null,null,null,null,null,null,null,null,null,null,null,null,null,null,null,null,null,null,null,null,null,null,null,null,null,null,null,null,null,null,null,null,null,null,null,505,{"$f":"Z15","v":0},{"$f":"AA15","v":0},10,11]
[null,null,null,null,null,null,null,null,null,null,null,null,null,null,null,null,null,null,null,null,null,null,null,null,null,null,null,null,null,null,null,null,null,null,null,null,null,null,506,{"$f":"X15","v":0},{"$f":"Y15","v":0},10,11]
[null,null,null,null,null,null,null,null,null,null,null,null,null,null,null,null,null,null,null,null,null,null,null,null,null,null,null,null,null,null,null,null,null,null,null,null,null,null,507,{"$f":"V15","v":0},{"$f":"W15","v":0},10,11]
[null,null,null,null,null,null,null,null,null,null,null,null,null,null,null,null,null,null,null,null,null,null,null,null,null,null,null,null,null,null,null,null,null,null,null,null,null,null,508,{"$f":"T15","v":0},{"$f":"U15","v":0},10,11]
[null,null,null,null,null,null,null,null,null,null,null,null,null,null,null,null,null,null,null,null,null,null,null,null,null,null,null,null,null,null,null,null,null,null,null,null,null,null,"本部",{"$f":"T12","v":0},{"$f":"U12","v":0},2,2]
[null,null,null,null,null,null,null,null,null,null,null,null,null,null,null,null,null,null,null,null,null,null,null,null,null,null,null,null,null,null,null,null,null,null,null,null,null,null,"Met",{"$f":"V12","v":0},{"$f":"X12","v":0},10,20]
[null,null,null,null,null,null,null,null,null,null,null,null,null,null,null,null,null,null,null,null,null,null,null,null,null,null,null,null,null,null,null,null,null,null,null,null,null,null,522,{"$f":"Q12","v":0},{"$f":"R12","v":0},2,2]
[null,null,null,null,null,null,null,null,null,null,null,null,null,null,null,null,null,null,null,null,null,null,null,null,null,null,null,null,null,null,null,null,null,null,null,null,null,null,509,{"$f":"Q15","v":0},{"$f":"R15","v":0},10,11]
[null,null,null,null,null,null,null,null,null,null,null,null,null,null,null,null,null,null,null,null,null,null,null,null,null,null,null,null,null,null,null,null,null,null,null,null,null,null,510,{"$f":"O15","v":0},{"$f":"P15","v":0},10,11]
[null,null,null,null,null,null,null,null,null,null,null,null,null,null,null,null,null,null,null,null,null,null,null,null,null,null,null,null,null,null,null,null,null,null,null,null,null,null,511,{"$f":"M15","v":0},{"$f":"N15","v":0},10,11]
[null,null,null,null,null,null,null,null,null,null,null,null,null,null,null,null,null,null,null,null,null,null,null,null,null,null,null,null,null,null,null,null,null,null,null,null,null,null,512,{"$f":"K15","v":0},{"$f":"L15","v":0},10,11]
[null,null,null,null,null,null,null,null,null,null,null,null,null,null,null,null,null,null,null,null,null,null,null,null,null,null,null,null,null,null,null,null,null,null,null,null,null,null,513,{"$f":"H12","v":0},{"$f":"I12","v":0},10,11]
[null,null,null,null,null,null,null,null,null,null,null,null,null,null,null,null,null,null,null,null,null,null,null,null,null,null,null,null,null,null,null,null,null,null,null,null,null,null,514,{"$f":"F12","v":0},{"$f":"G12","v":0},10,11]
[null,null,null,null,null,null,null,null,null,null,null,null,null,null,null,null,null,null,null,null,null,null,null,null,null,null,null,null,null,null,null,null,null,null,null,null,null,null,515,{"$f":"D12","v":0},{"$f":"E12","v":0},10,11]
[null,null,null,null,null,null,null,null,null,null,null,null,null,null,null,null,null,null,null,null,null,null,null,null,null,null,null,null,null,null,null,null,null,null,null,null,null,null,516,{"$f":"B12","v":0},{"$f":"C12","v":0},10,11]
[null,null,null,null,null,null,null,null,null,null,null,null,null,null,null,null,null,null,null,null,null,null,null,null,null,null,null,null,null,null,null,null,null,null,null,null,null,null,523,{"$f":"H9","v":0},{"$f":"I9","v":0},2,2]
[null,null,null,null,null,null,null,null,null,null,null,null,null,null,null,null,null,null,null,null,null,null,null,null,null,null,null,null,null,null,null,null,null,null,null,null,null,null,null,null,{"$f":"SUM(AO2:AO64)","v":0}]